Workbook

Sheet 1. Info and Instructions
AB1: Algoma Power Inc.
AB2: Atikokan Hydro Inc.
AB3: Attawapiskat Power Corporation
AB4: Bluewater Power Distribution Corporation
AB5: Brantford Power Inc.
AB6: Burlington Hydro Inc.
AB7: Canadian Niagara Power Inc.
AB8: Centre Wellington Hydro Ltd.
AB9: Chapleau Public Utilities Corporation
AB10: COLLUS PowerStream Corp.
AB11: Cooperative Hydro Embrun Inc.
F12: Version | G12: 1 | AB12: E.L.K. Energy Inc.
AB13: Energy + Inc.
C14: Utility Name | D14: Cooperative Hydro Embrun Inc. | AB14: Enersource Hydro Mississauga Inc.
AB15: Entegrus Powerlines Inc.
C16: Assigned EB Number | D16: EB-2015-0063 | AB16: EnWin Utilities Ltd.
AB17: Erie Thames Powerlines Corporation
C18: Name and Title | D18: Cooperative Hydro Embrun | AB18: Espanola Regional Hydro Distribution Corporation
AB19: Essex Powerlines Corporation
C20: Phone Number | D20: 613-443-5510 | AB20: Festival Hydro Inc.
AB21: Fort Albany Power Corporation
C22: Email Address | D22: embrunhydro@magma.ca | AB22: Fort Frances Power Corporation
AB23: Greater Sudbury Hydro Inc.
C24: Date | D24: 2017-03-10 | AB24: Grimsby Power Inc.
AB25: Guelph Hydro Electric Systems Inc.
C26: Last COS Re-based Year | D26: 2015 | AB26: Haldimand County Hydro Inc.
AB27: Halton Hills Hydro Inc.
AB28: Hearst Power Distribution Company Limited
A29: Note: Drop-down lists are shaded blue; Input cells are shaded green. | AB29: Horizon Utilities Corporation
AB30: Hydro 2000 Inc.
AB31: Hydro Hawkesbury Inc.
AB32: Hydro One Brampton Networks Inc.
AB33: Hydro One Networks Inc.
AB34: Hydro One Remote Communities Inc.
AB35: Hydro Ottawa Limited
AB36: Innpower Corporation
AB37: Kashechewan Power Corporation
AB38: Kenora Hydro Electric Corporation Ltd.
AB39: Kingston Hydro Corporation
AB40: Kitchener-Wilmot Hydro Inc.
AB41: Lakefront Utilities Inc.
AB42: Lakeland Power Distribution Ltd.
AB43: London Hydro Inc.
AB44: Midland Power Utility Corporation
AB45: Milton Hydro Distribution Inc.
AB46: Newmarket-Tay Power Distribution Ltd.
AB47: Niagara Peninsula Energy Inc.
AB48: Niagara-on-the-Lake Hydro Inc.
AB49: Norfolk Power Distribution Inc.
AB50: North Bay Hydro Distribution Limited
AB51: Northern Ontario Wires Inc.
AB52: Oakville Hydro Electricity Distribution Inc.
AB53: Orangeville Hydro Limited
AB54: Orillia Power Distribution Corporation
AB55: Oshawa PUC Networks Inc.
AB56: Ottawa River Power Corporation
AB57: Peterborough Distribution Incorporated
AB58: PowerStream Inc.
AB59: PUC Distribution Inc.
AB60: Renfrew Hydro Inc.
AB61: Rideau St. Lawrence Distribution Inc.
AB62: Sioux Lookout Hydro Inc.
AB63: St. Thomas Energy Inc.
AB64: Thunder Bay Hydro Electricity Distribution Inc.
AB65: Tillsonburg Hydro Inc.
AB66: Toronto Hydro-Electric System Limited
AB67: Veridian Connections Inc.
AB68: Wasaga Distribution Inc.
AB69: Waterloo North Hydro Inc.
AB70: Welland Hydro-Electric System Corp.
AB71: Wellington North Power Inc.
AB72: West Coast Huron Energy Inc.
AB73: Westario Power Inc.
AB74: Whitby Hydro Electric Corporation
AB75: Woodstock Hydro Services Inc.

Sheet Table of Contents
AA1: 1
AA2: 2012
AA3: 2013
AA4: 2014
AA5: 2015
AA6: 2016
D10: 1. Info
D11: S. Summary
D12: A. Data Input Sheet
D13: B. Tax Rates & Exemptions
C16: Historical Year | D16: H0 - PILs, Tax Provision Historical Year
D17: H1 - Adj. Taxable Income Historical Year
D18: H4 - Schedule 4 Loss Carry Forward Historical Year
D19: H8 - Schedule 8 Historical
D20: H10 - Schedule 10 CEC Historical Year
D21: H13 - Schedule 13 Tax Reserves Historical
C23: Bridge Year | D23: B0 - PILs,Tax Provision Bridge Year
D24: B1 - Adj. Taxable Income Bridge Year
D25: B4 - Schedule 4 Loss Carry Forward Bridge Year
D26: B8 - Schedule 8 CCA Bridge Year
D27: B10 - Schedule 10 CEC Bridge Year
D28: B13 - Schedule 13 Tax Reserves Bridge Year
C30: Test Year | D30: T0 PILs, Tax Provision Test Year
D31: T1 Taxable Income Test Year
D32: T4 Schedule 4 Loss Carry Forward Test Year
D33: T8 Schedule 8 CCA Test Year
D34: T13 Schedule 13 Reserve Test Year

Sheet S. Summary
B7: No inputs required on this worksheet.
D9: Inputs on Service Revenue Requirement Worksheet
D10: The Service Revenue Requirement is in the 'Revenue Requirement Workform' - Tab 3.
D12: Item | G12: Working Paper Reference
D14: Adjustments required to arrive at taxable income | G14: as below | H14: =+H25 -> -141276.919
D15: Test Year - Payments in Lieu of Taxes (PILs) | G15: T0 | H15: =+'T0 PILs,Tax Provision '!J25 -> 3464.846154
D16: Test Year - Grossed-up PILs | G16: T0 | H16: =+'T0 PILs,Tax Provision '!J30 -> 4076.289593
D17: Effective Federal Tax Rate | G17: T0 | H17: =+'T0 PILs,Tax Provision '!G14 -> 0.105
D18: Effective Ontario Tax Rate | G18: T0 | H18: =+'T0 PILs,Tax Provision '!G13 -> 0.045
D22: Calculation of Adjustments required to arrive at Taxable Income
D23: Regulatory Income (before income taxes) | G23: T1 | H23: =+'T1 Taxable Income Test Year'!F12 -> 164375.8933
D24: Taxable Income | G24: T1 | H24: =+'T1 Taxable Income Test Year'!F124 -> 23098.97436
D25: Difference | G25: calculated | H25: =+H24-H23 -> -141276.919 | I25: as above

Sheet A. Data Input Sheet
G7: Test Year | H7: Bridge Year
C9: Rate Base | F9: S | G9: 4680406.985 | H9: 4180301.096
C11: Return on Ratebase
C12: Deemed ShortTerm Debt % | E12: 0.04 | F12: T | G12: =G9*E12 -> 187216.2794 | H12: W = S * T
C13: Deemed Long Term Debt % | E13: 0.56 | F13: U | G13: =G9*E13 -> 2621027.912 | H13: X = S * U
C14: Deemed Equity % | E14: 0.4 | F14: V | G14: =G9*E14 -> 1872162.794 | H14: Y = S * V
C16: Short Term Interest Rate | E16: 0.0176 | F16: Z | G16: =G12*E16 -> 3295.006518 | H16: AC = W * Z
C17: Long Term Interest | E17: 0.029 | F17: AA | G17: =G13*E17 -> 76009.80944 | H17: AD = X * AA
C18: Return on Equity (Regulatory Income) | E18: 0.0878 | F18: AB | G18: =G14*E18 -> 164375.8933 | H18: AE = Y * AB | I18: T1
C19: Return on Rate Base | G19: =SUM(G16:G18) -> 243680.7093 | H19: AF = AC + AD + AE
C24: Questions that must be answered | G24: Historical Year | H24: Bridge Year | I24: Test Year
C26: 1. Does the applicant have any Investment Tax Credits (ITC)? | G26: No | H26: No | I26: No
C28: 2. Does the applicant have any SRED Expenditures? | G28: No | H28: No | I28: No
C30: 3. Does the applicant have any Capital Gains or Losses for tax purposes? | G30: No | H30: No | I30: No
C32: 4. Does the applicant have any Capital Leases? | G32: No | H32: No | I32: No
C34: 5. Does the applicant have any Loss Carry-Forwards (non-capital or net capital)? | G34: No | H34: No | I34: No
C36: 6. Since 1999, has the applicant acquired another regulated applicant's assets? | G36: No | H36: No | I36: No
C38: 7. Did the applicant pay dividends? | G38: No | H38: No | I38: No
C39: If Yes, please describe what was the tax treatment in the manager's summary.
C41: 8. Did the applicant elect to capitalize interest incurred on CWIP for tax purposes? | G41: No | H41: No | I41: No

Sheet B. Tax Rates & Exemptions
C9: Tax Rates
C10: Federal & Provincial | E10: Effective | F10: Effective | G10: Effective | H10: Effective | I10: Effective | J10: Effective
C11: As of May 16, 2016 | E11: 2012-01-01 | F11: 2013-01-01 | G11: 2014-01-01 | H11: 2015-01-01 | I11: 2016-01-01 | J11: 2017-01-01
C13: Federal income tax
C14: General corporate rate | E14: 0.38 | F14: 0.38 | G14: 0.38 | H14: 0.38 | I14: 0.38 | J14: 0.38
C15: Federal tax abatement | E15: -0.1 | F15: -0.1 | G15: -0.1 | H15: -0.1 | I15: -0.1 | J15: -0.1
C16: Adjusted federal rate | E16: =SUM(E14:E15) -> 0.28 | F16: 0.28 | G16: 0.28 | H16: 0.28 | I16: 0.28 | J16: 0.28
C18: Rate reduction | E18: -0.13 | F18: -0.13 | G18: -0.13 | H18: -0.13 | I18: -0.13 | J18: -0.13
C19: Federal Income Tax | E19: =E16+E18 -> 0.15 | F19: 0.15 | G19: 0.15 | H19: 0.15 | I19: 0.15 | J19: 0.15
C21: Ontario income tax | E21: 0.115 | F21: 0.115 | G21: 0.115 | H21: 0.115 | I21: 0.115 | J21: 0.115
C23: Combined federal and Ontario | E23: =E19+E21 -> 0.265 | F23: 0.265 | G23: 0.265 | H23: 0.265 | I23: =I19+I21 -> 0.265 | J23: 0.265
C25: Federal & Ontario Small Business
C26: Federal small business threshold | E26: 500000 | F26: 500000 | G26: 500000 | H26: 500000 | I26: 500000 | J26: 500000
C27: Ontario Small Business Threshold | E27: 500000 | F27: 500000 | G27: 500000 | H27: 500000 | I27: 500000 | J27: 500000
C29: Federal small business rate | E29: 0.11 | F29: 0.11 | G29: 0.11 | H29: 0.11 | I29: 0.105 | J29: 0.105
C31: Ontario small business rate | E31: 0.045 | F31: 0.045 | G31: 0.045 | H31: 0.045 | I31: 0.045 | J31: 0.045
C34: Notes
C35: 1. The Ontario Energy Board's proxy for taxable capital is rate base.
C36: 2. Regarding the small business deduction, if applicable,
C37: a. If taxable capital exceeds $15 million, the small business rate will not be applicable.
C38: b. If taxable capital is below $10 million, the small business rate would be applicable.
C39: c. If taxable capital is between $10 million and $15 million, the appropriate small business rate will be calculated.

Sheet H0 PILs,Tax Provision Historic
C6: PILs Tax Provision - Historical Year
C8: Note: Input the actual information from the tax returns for the historical year. | I8: Wires Only
C10: Regulatory Taxable Income | H10: H1 | I10: ='H1 Adj. Taxable Income Historic'!G119 -> 102625 | J10: A
C12: Ontario Income Taxes
C13: Income tax payable | D13: Ontario Income Tax | F13: B | H13: C = A * B
C15: Small business credit | D15: Ontario Small Business Threshold | E15: =IF(I10>'B. Tax Rates & Exemptions'!F27,'B. Tax Rates & Exemptions'!F27,0) -> 0 | F15: D
D16: Rate reduction (negative) | F16: E | H16: F = D * E
C20: Ontario Income tax | I20: =SUM(G13:G19) -> 0 | J20: J = C + F
C23: Combined Tax Rate and PILs | D23: Ontario Tax Rate (Maximum 11.5%) | G23: 0.045 | H23: B
D24: Federal tax rate (Maximum 15%) | G24: 0.105 | H24: C
D25: Combined tax rate (Maximum 26.5%) | I25: =SUM(G23:G24) -> 0.15 | J25: D = B+C
C28: Total Income Taxes | I28: =I10*I25 -> 15393.75 | J28: E = A * D
C30: Investment Tax Credits | J30: F
C31: Miscellaneous Tax Credits | J31: G
C32: Total Tax Credits | I32: =SUM(I30:I31) -> 0 | J32: H = F + G
C34: Corporate PILs/Income Tax Provision for Historical Year | I34: =IF(I28-I32<0,0,I28-I32) -> 15393.75 | J34: I = E - H

Sheet H1 Adj. Taxable Income Historic
C8: Adjusted Taxable Income - Historical Year
D11: T2S1 line # | E11: Total for Legal Entity | F11: Non-Distribution Eliminations | G11: Historic Wires Only
C12: Income before PILs/Taxes | D12: A | E12: 139753 | G12: =+E12-F12 -> 139753
C13: Additions:
C14: Interest and penalties on taxes | D14: 103 | G14: =+E14-F14 -> 0
C15: Amortization of tangible assets | D15: 104 | E15: 124120 | G15: 124120
C16: Amortization of intangible assets | D16: 106 | G16: 0
C17: Recapture of capital cost allowance from Schedule 8 | D17: 107 | G17: 0
C18: Gain on sale of eligible capital property from Schedule 10 | D18: 108 | G18: 0
C19: Income or loss for tax purposes- joint ventures or partnerships | D19: 109 | G19: 0
C20: Loss in equity of subsidiaries and affiliates | D20: 110 | G20: 0
C21: Loss on disposal of assets | D21: 111 | E21: 11858 | G21: 11858
C22: Charitable donations | D22: 112 | G22: 0
C23: Taxable Capital Gains | D23: 113 | G23: 0
C24: Political Donations | D24: 114 | G24: 0
C25: Deferred and prepaid expenses | D25: 116 | G25: 0
C26: Scientific research expenditures deducted on financial statements | D26: 118 | G26: 0
C27: Capitalized interest | D27: 119 | G27: 0
C28: Non-deductible club dues and fees | D28: 120 | G28: 0
C29: Non-deductible meals and entertainment expense | D29: 121 | G29: 0
C30: Non-deductible automobile expenses | D30: 122 | G30: 0
C31: Non-deductible life insurance premiums | D31: 123 | G31: 0
C32: Non-deductible company pension plans | D32: 124 | G32: 0
C33: Tax reserves deducted in prior year | D33: 125 | G33: 0
C34: Reserves from financial statements- balance at end of year | D34: 126 | G34: 0
C35: Soft costs on construction and renovation of buildings | D35: 127 | G35: 0
C36: Book loss on joint ventures or partnerships | D36: 205 | G36: 0
C37: Capital items expensed | D37: 206 | G37: 0
C38: Debt issue expense | D38: 208 | G38: 0
C39: Development expenses claimed in current year | D39: 212 | G39: 0
C40: Financing fees deducted in books | D40: 216 | G40: 0
C41: Gain on settlement of debt | D41: 220 | G41: 0
C42: Non-deductible advertising | D42: 226 | G42: 0
C43: Non-deductible interest | D43: 227 | G43: 0
C44: Non-deductible legal and accounting fees | D44: 228 | G44: 0
C45: Recapture of SR&ED expenditures | D45: 231 | G45: 0
C46: Share issue expense | D46: 235 | G46: 0
C47: Write down of capital property | D47: 236 | G47: 0
C48: Amounts received in respect of qualifying environment trust per paragraphs 12(1)(z.1) and 12(1)(z.2) | D48: 237 | G48: 0
C49: Other Additions
C50: Interest Expensed on Capital Leases | D50: 290 | G50: 0
C51: Realized Income from Deferred Credit Accounts | D51: 291 | G51: 0
C52: Pensions | D52: 292 | G52: 0
C53: Non-deductible penalties | D53: 293 | G53: 0
D54: 294 | G54: 0
D55: 295 | G55: =+E55-F55 -> 0
C56: ARO Accretion expense | G56: 0
C57: Capital Contributions Received (ITA 12(1)(x)) | G57: 0
C58: Lease Inducements Received (ITA 12(1)(x)) | G58: 0
C59: Deferred Revenue (ITA 12(1)(a)) | G59: 0
C60: Prior Year Investment Tax Credits received | G60: 0
G61: 0
E62: 0 | G62: 0
G63: 0
G64: 0
G65: 0
G66: 0
G67: 0
G68: 0
G69: 0
G70: 0
C71: Total Additions | E71: =SUM(E13:E70) -> 135978 | F71: =SUM(F13:F70) -> 0 | G71: =SUM(G13:G70) -> 135978
C73: Deductions:
C74: Gain on disposal of assets per financial statements | D74: 401 | G74: =+E74-F74 -> 0
C75: Dividends not taxable under section 83 | D75: 402 | G75: 0
C76: Capital cost allowance from Schedule 8 | D76: 403 | E76: 170556 | G76: 170556
C77: Terminal loss from Schedule 8 | D77: 404 | G77: 0
C78: Cumulative eligible capital deduction from Schedule 10 | D78: 405 | E78: 2550 | G78: 2550
C79: Allowable business investment loss | D79: 406 | G79: 0
C80: Deferred and prepaid expenses | D80: 409 | G80: 0
C81: Scientific research expenses claimed in year | D81: 411 | G81: 0
C82: Tax reserves claimed in current year | D82: 413 | G82: 0
C83: Reserves from financial statements - balance at beginning of year | D83: 414 | G83: 0
C84: Contributions to deferred income plans | D84: 416 | G84: 0
C85: Book income of joint venture or partnership | D85: 305 | G85: 0
C86: Equity in income from subsidiary or affiliates | D86: 306 | G86: 0
C87: Other deductions: (Please explain in detail the nature of the item)
C89: Interest capitalized for accounting deducted for tax | D89: 390 | G89: 0
C90: Capital Lease Payments | D90: 391 | G90: 0
C91: Non-taxable imputed interest income on deferral and variance accounts | D91: 392 | G91: 0
D92: 393 | G92: 0
D93: 394 | G93: 0
C94: ARO Payments - Deductible for Tax when Paid | G94: 0
C95: ITA 13(7.4) Election - Capital Contributions Received | G95: 0
C96: ITA 13(7.4) Election - Apply Lease Inducement to cost of Leaseholds | G96: 0
C97: Deferred Revenue - ITA 20(1)(m) reserve | G97: 0
C98: Principal portion of lease payments | G98: 0
C99: Lease Inducement Book Amortization credit to income | G99: 0
C100: Financing fees for tax ITA 20(1)(e) and (e.1) | G100: 0
E101: 0 | G101: 0
G102: 0
G103: 0
G104: 0
G105: 0
G106: 0
G107: 0
C109: Total Deductions | E109: =SUM(E74:E108) -> 173106 | F109: =SUM(F74:F108) -> 0 | G109: =SUM(G74:G108) -> 173106
C111: Net Income for Tax Purposes | E111: =+E12+E71-E109 -> 102625 | F111: =+F12+F71-F109 -> 0 | G111: =+G12+G71-G109 -> 102625
C113: Charitable donations from Schedule 2 | D113: 311 | G113: =+E113-F113 -> 0
C114: Taxable dividends deductible under section 112 or 113, from Schedule 3 (item 82) | D114: 320 | G114: =+E114-F114 -> 0
C115: Non-capital losses of preceding taxation years from Schedule 4 | D115: 331 | G115: =+E115-F115 -> 0
C116: Net-capital losses of preceding taxation years from Schedule 4 (Please include explanation and calculation in Manager's summary) | D116: 332 | G116: =+E116-F116 -> 0
C117: Limited partnership losses of preceding taxation years from Schedule 4 | D117: 335 | G117: =+E117-F117 -> 0
C119: TAXABLE INCOME | E119: =+E111-SUM(E113:E117) -> 102625 | F119: =+F111-SUM(F113:F117) -> 0 | G119: =+G111-SUM(G113:G117) -> 102625 | H119: H0

Sheet H4 Sch 4 Loss Cfwd Hist
C9: Schedule 7-1 Loss Carry Forward - Historical
C11: Corporation Loss Continuity and Application
C13: Non-Capital Loss Carry Forward Deduction | F13: Total | G13: Non-Distribution Portion | H13: Utility Balance
C14: Actual Historical | H14: =F14-G14 -> 0 | I14: B4
C16: Net Capital Loss Carry Forward Deduction | F16: Total | G16: Non-Distribution Portion | H16: Utility Balance
C17: Actual Historical | H17: =F17-G17 -> 0 | I17: B4

Sheet H8 Sch 8 Historical
C6: Schedule 8 - Historical Year
C11: Class | D11: Class Description | E11: UCC End of Year Historical per tax returns | F11: Less: Non-Distribution Portion | G11: UCC Regulated Historical Year | H11: Working Paper Reference
C12: 1 | D12: Distribution System - post 1987 | E12: 1183917 | G12: =+E12-F12 -> 1183917 | H12: B8
C13: 1 Enhanced | D13: Non-residential Buildings Reg. 1100(1)(a.1) election | G13: =+E13-F13 -> 0 | H13: B8
C14: 2 | D14: Distribution System - pre 1988 | G14: =+E14-F14 -> 0 | H14: B8
C15: 8 | D15: General Office/Stores Equip | E15: 17385 | G15: 17385 | H15: B8
C16: 10 | D16: Computer Hardware/ Vehicles | E16: 69 | G16: 69 | H16: B8
C17: 10.1 | D17: Certain Automobiles | G17: 0 | H17: B8
C18: 12 | D18: Computer Software | G18: 0 | H18: B8
C19: 13 1 | D19: Lease # 1 | G19: 0 | H19: B8
C20: 13 2 | D20: Lease #2 | G20: 0 | H20: B8
C21: 13 3 | D21: Lease # 3 | G21: 0 | H21: B8
C22: 13 4 | D22: Lease # 4 | G22: 0 | H22: B8
C23: 14 | D23: Franchise | G23: 0 | H23: B8
C24: 17 | D24: New Electrical Generating Equipment Acq'd after Feb 27/00 Other Than Bldgs | G24: 0 | H24: B8
C25: 42 | D25: Fibre Optic Cable | G25: =+E25-F25 -> 0 | H25: B8
C26: 43.1 | D26: Certain Energy-Efficient Electrical Generating Equipment | G26: 0 | H26: B8
C27: 43.2 | D27: Certain Clean Energy Generation Equipment | G27: 0 | H27: B8
C28: 45 | D28: Computers & Systems Software acq'd post Mar 22/04 | E28: 19 | G28: 19 | H28: B8
C29: 46 | D29: Data Network Infrastructure Equipment (acq'd post Mar 22/04) | G29: 0 | H29: B8
C30: 47 | D30: Distribution System - post February 2005 | E30: 1469331 | G30: 1469331 | H30: B8
C31: 50 | D31: Data Network Infrastructure Equipment - post Mar 2007 | E31: 9300 | G31: 9300 | H31: B8
C32: 52 | D32: Computer Hardware and system software | G32: 0 | H32: B8
C33: 95 | D33: CWIP | G33: 0 | H33: B8
G34: 0
G35: 0
G36: 0
G37: 0
G38: 0
G39: 0
G40: 0
G41: 0
G42: 0
G43: 0
D44: SUB-TOTAL - UCC | E44: =SUM(E12:E43) -> 2680021 | F44: =SUM(F12:F43) -> 0 | G44: =SUM(G12:G43) -> 2680021

Sheet H10 Schedule 10 CEC Hist
C8: Schedule 10 CEC - Historical Year
C10: Cumulative Eligible Capital | K10: 36424
C11: Additions
C12: Cost of Eligible Capital Property Acquired during Test Year
C14: Other Adjustments | G14: 0
C16: Subtotal | G16: =SUM(G12,G14) -> 0 | I16: x 3/4 = | J16: =3/4*G16 -> 0
C18: Non-taxable portion of a non-arm's length transferor's gain realized on the | G18: 0 | I18: x 1/2 = | J18: =IF((G18*0.5)<0, 0, G18*0.5) -> 0
C19: transfer of an ECP to the Corporation after Friday, December 20, 2002
J20: =IF((J16-J18)<0,0,J16-J18) -> 0 | K20: =J20 -> 0
C22: Amount transferred on amalgamation or wind-up of subsidiary | G22: 0 | K22: =G22 -> 0
F24: Subtotal | K24: =SUM(K10,K20,K22) -> 36424
C26: Deductions
C28: Proceeds of sale (less outlays and expenses not otherwise deductible)
C29: from the disposition of all ECP during Test Year
C31: Other Adjustments | G31: 0
F33: Subtotal | G33: =SUM(G31,G28) -> 0 | I33: x 3/4 = | K33: =G33*3/4 -> 0
C36: Cumulative Eligible Capital Balance | K36: =K24-K33 -> 36424
C38: Current Year Deduction | I38: =K36 -> 36424 | J38: x 7% = | K38: =I38*0.07 -> 2549.68
C40: Cumulative Eligible Capital - Closing Balance | K40: =K36-K38 -> 33874.32 | L40: B10

Sheet H13 Sch 13 Tax Reserves Histori
C8: Schedule 13 Tax Reserves - Historical
C10: Continuity of Reserves
C13: Description | D13: Historical Balance as per tax returns | E13: Non-Distribution Eliminations | F13: Utility Only
C15: Capital Gains Reserves ss.40(1) | F15: =D15-E15 -> 0 | G15: B13
C16: Tax Reserves Not Deducted for accounting purposes
C17: Reserve for doubtful accounts ss. 20(1)(l) | F17: =D17-E17 -> 0 | G17: B13
C18: Reserve for goods and services not delivered ss. 20(1)(m) | F18: 0 | G18: B13
C19: Reserve for unpaid amounts ss. 20(1)(n) | F19: 0 | G19: B13
C20: Debt & Share Issue Expenses ss. 20(1)(e) | F20: 0 | G20: B13
C21: Other tax reserves | F21: 0 | G21: B13
F22: 0
F23: 0
F24: 0
F25: 0
F26: 0
C27: Total | D27: =SUM(D17:D26) -> 0 | E27: =SUM(E17:E26) -> 0 | F27: =SUM(F17:F26) -> 0
C29: Financial Statement Reserves (not deductible for Tax Purposes)
C30: General Reserve for Inventory Obsolescence (non-specific) | F30: =D30-E30 -> 0 | G30: B13
C31: General reserve for bad debts | F31: 0 | G31: B13
C32: Accrued Employee Future Benefits: | F32: 0 | G32: B13
C33: - Medical and Life Insurance | F33: 0 | G33: B13
C34: -Short & Long-term Disability | F34: 0 | G34: B13
C35: -Accmulated Sick Leave | F35: 0 | G35: B13
C36: - Termination Cost | F36: 0 | G36: B13
C37: - Other Post-Employment Benefits | F37: 0 | G37: B13
C38: Provision for Environmental Costs | F38: 0 | G38: B13
C39: Restructuring Costs | F39: 0 | G39: B13
C40: Accrued Contingent Litigation Costs | F40: 0 | G40: B13
C41: Accrued Self-Insurance Costs | F41: 0 | G41: B13
C42: Other Contingent Liabilities | F42: 0 | G42: B13
C43: Bonuses Accrued and Not Paid Within 180 Days of Year-End ss. 78(4) | F43: 0 | G43: B13
C44: Unpaid Amounts to Related Person and Not Paid Within 3 Taxation Years ss. 78(1) | F44: 0 | G44: B13
C45: Other | F45: 0 | G45: B13
F49: 0
F50: 0
C51: Total | D51: =SUM(D30:D50) -> 0 | E51: =SUM(E30:E50) -> 0 | F51: =SUM(F30:F50) -> 0

Sheet B0 PILs,Tax Provision Bridge
B6: PILS Tax Provision - Bridge Year
J8: Wires Only
I9: Reference
C10: Regulatory Taxable Income | I10: B1 | J10: ='B1 Adj. Taxable Income Bridge'!F114 -> 39292.7076 | K10: A
D12: Tax Rate | E12: Small Business Rate (If Applicable) | F12: Taxes Payable | G12: Effective Tax Rate
C13: Ontario (Max 11.5%) | D13: 0.115 | E13: =IF('A. Data Input Sheet'!H9<=10000000, ontario_SB, IF('A. Data Input Sheet'!H9>=15000000, ontariotax, IF(AND('A. Data Input Sheet'!H9>10000000, 'A. Data Input Sheet'!H9<15000000), ontario_SB+ ('A. Data Input Sheet'!H9 - 10000000)*(ontariotax - ontario_SB)/(15000000-10000000)))) -> 0.045 | F13: =IF(J10<500000,J10,500000)*E13+IF(J10>500000,J10-500000,0)*D13 -> 1768.171842 | G13: =IF(F13=0,0,+F13/J10) -> 0.045 | H13: B
C14: Federal (Max 15%) | D14: 0.15 | E14: =IF('A. Data Input Sheet'!H9<=10000000, Fed_SB, IF('A. Data Input Sheet'!H9>=15000000, FedTax, IF(AND('A. Data Input Sheet'!H9>10000000, 'A. Data Input Sheet'!H9<15000000), Fed_SB+ ('A. Data Input Sheet'!H9 - 10000000)*(FedTax -Fed_SB)/(15000000-10000000)))) -> 0.105 | F14: =E14*IF(J10<500000,J10,500000)+IF(J10>500000,J10-500000,0)*D14 -> 4125.734298 | G14: =IF(F14=0,0,+F14/J10) -> 0.105 | H14: C
C16: Combined effective tax rate (Max 26.5%) | J16: =SUM(G13:G14) -> 0.15 | K16: D = B + C
C19: Total Income Taxes | J19: =IF(J10*J16<0,0,J10*J16) -> 5893.90614 | K19: E = A * D
C21: Investment Tax Credits | K21: F
C22: Miscellaneous Tax Credits | K22: G
C23: Total Tax Credits | J23: =SUM(J21:J22) -> 0 | K23: H = F + G
C25: Corporate PILs/Income Tax Provision for Bridge Year | J25: =IF(J19-J23<0,0,J19-J23) -> 5893.90614 | K25: I = E - H
C29: Note:
C30: 1. This is for the derivation of Bridge year PILs income tax expense and should not be used for Test year revenue requirement calculations.

Sheet B1 Adj. Taxable Income Bridge
B5: Adjusted Taxable Income - Bridge Year
D7: T2S1 line # | E7: Working Paper Reference | F7: Total for Regulated Utility
C8: Income before PILs/Taxes | D8: A | F8: 140000
C10: Additions:
C11: Interest and penalties on taxes | D11: 103
C12: Amortization of tangible assets | D12: 104 | F12: 145817
C13: Amortization of intangible assets | D13: 106
C14: Recapture of capital cost allowance from Schedule 8 | D14: 107
C15: Gain on sale of eligible capital property from Schedule 10 | D15: 108
C16: Income or loss for tax purposes- joint ventures or partnerships | D16: 109
C17: Loss in equity of subsidiaries and affiliates | D17: 110
C18: Loss on disposal of assets | D18: 111
C19: Charitable donations | D19: 112
C20: Taxable Capital Gains | D20: 113
C21: Political Donations | D21: 114
C22: Deferred and prepaid expenses | D22: 116
C23: Scientific research expenditures deducted on financial statements | D23: 118
C24: Capitalized interest | D24: 119
C25: Non-deductible club dues and fees | D25: 120
C26: Non-deductible meals and entertainment expense | D26: 121
C27: Non-deductible automobile expenses | D27: 122
C28: Non-deductible life insurance premiums | D28: 123
C29: Non-deductible company pension plans | D29: 124
C30: Tax reserves deducted in prior year | D30: 125 | E30: B13 | F30: ='B13 Sch 13 Tax Reserves Bridge'!G22 -> 0
C31: Reserves from financial statements- balance at end of year | D31: 126 | E31: B13 | F31: ='B13 Sch 13 Tax Reserves Bridge'!K43 -> 0
C32: Soft costs on construction and renovation of buildings | D32: 127
C33: Book loss on joint ventures or partnerships | D33: 205
C34: Capital items expensed | D34: 206
C35: Debt issue expense | D35: 208
C36: Development expenses claimed in current year | D36: 212
C37: Financing fees deducted in books | D37: 216
C38: Gain on settlement of debt | D38: 220
C39: Non-deductible advertising | D39: 226
C40: Non-deductible interest | D40: 227
C41: Non-deductible legal and accounting fees | D41: 228
C42: Recapture of SR&ED expenditures | D42: 231
C43: Share issue expense | D43: 235
C44: Write down of capital property | D44: 236
C45: Amounts received in respect of qualifying environment trust per paragraphs 12(1)(z.1) and 12(1)(z.2) | D45: 237
C46: Other Additions
C47: Interest Expensed on Capital Leases | D47: 290
C48: Realized Income from Deferred Credit Accounts | D48: 291
C49: Pensions | D49: 292
C50: Non-deductible penalties | D50: 293
D51: 294
D52: 295
C53: ARO Accretion expense
C54: Capital Contributions Received (ITA 12(1)(x))
C55: Lease Inducements Received (ITA 12(1)(x))
C56: Deferred Revenue (ITA 12(1)(a))
C57: Prior Year Investment Tax Credits received
F58: 0
C68: Total Additions | F68: =SUM(F10:F67) -> 145817
C69: Deductions:
C70: Gain on disposal of assets per financial statements | D70: 401
C71: Dividends not taxable under section 83 | D71: 402
C72: Capital cost allowance from Schedule 8 | D72: 403 | E72: B8 | F72: ='B8 Schedule 8 CCA Bridge Year'!M42 -> 244153.09
C73: Terminal loss from Schedule 8 | D73: 404
C74: Cumulative eligible capital deduction from Schedule 10 | D74: 405 | E74: B10 | F74: ='B10 Schedule 10 CEC Bridge Year'!K38 -> 2371.2024
C75: Allowable business investment loss | D75: 406
C76: Deferred and prepaid expenses | D76: 409
C77: Scientific research expenses claimed in year | D77: 411
C78: Tax reserves claimed in current year | D78: 413 | E78: B13 | F78: ='B13 Sch 13 Tax Reserves Bridge'!K22 -> 0
C79: Reserves from financial statements - balance at beginning of year | D79: 414 | E79: B13 | F79: ='B13 Sch 13 Tax Reserves Bridge'!G43 -> 0
C80: Contributions to deferred income plans | D80: 416
C81: Book income of joint venture or partnership | D81: 305
C82: Equity in income from subsidiary or affiliates | D82: 306
C83: Other deductions: (Please explain in detail the nature of the item)
C85: Interest capitalized for accounting deducted for tax | D85: 390
C86: Capital Lease Payments | D86: 391
C87: Non-taxable imputed interest income on deferral and variance accounts | D87: 392
D88: 393 | F88: 0
D89: 394
C90: ARO Payments - Deductible for Tax when Paid
C91: ITA 13(7.4) Election - Capital Contributions Received
C92: ITA 13(7.4) Election - Apply Lease Inducement to cost of Leaseholds
C93: Deferred Revenue - ITA 20(1)(m) reserve
C94: Principal portion of lease payments
C95: Lease Inducement Book Amortization credit to income
C96: Financing fees for tax ITA 20(1)(e) and (e.1)
C105: Total Deductions | E105: calculated | F105: =SUM(F70:F104) -> 246524.2924
C107: Net Income for Tax Purposes | E107: calculated | F107: =+F8+F68-F105 -> 39292.7076
C108: Charitable donations from Schedule 2 | D108: 311
C109: Taxable dividends deductible under section 112 or 113, from Schedule 3 (item 82) | D109: 320
C110: Non-capital losses of preceding taxation years from Schedule 4 | D110: 331 | E110: B4 | F110: ='B4 Sch 4 Loss Cfwd Bridge'!G16*-1 -> 0
C111: Net-capital losses of preceding taxation years from Schedule 4 (Please include explanation and calculation in Manager's summary) | D111: 332
C112: Limited partnership losses of preceding taxation years from Schedule 4 | D112: 335
C114: TAXABLE INCOME | E114: calculated | F114: =SUM(F107:F112) -> 39292.7076

Sheet B4 Sch 4 Loss Cfwd Bridge
C7: Corporation Loss Continuity and Application
C9: Schedule 4 Loss Carry Forward - Bridge Year
C11: Non-Capital Loss Carry Forward Deduction | G11: Total
C12: Actual Historical | F12: H4 | G12: ='H4 Sch 4 Loss Cfwd Hist'!H14 -> 0
C13: Application of Loss Carry Forward to reduce taxable income in Bridge Year
C14: Other Adjustments Add (+) Deduct (-) | F14: B1 | G14: =IF('B1 Adj. Taxable Income Bridge'!F107<0, 'B1 Adj. Taxable Income Bridge'!F107*-1, 0) -> 0
C15: Balance available for use in Test Year | F15: calculated | G15: =G12+G13+G14 -> 0
C16: Amount to be used in Bridge Year | F16: B1 | G16: =IF('B1 Adj. Taxable Income Bridge'!F107<0,0,IF('B1 Adj. Taxable Income Bridge'!F107>G15,G15,'B1 Adj. Taxable Income Bridge'!F107)) -> 0
C17: Balance available for use post Bridge Year | F17: calculated | G17: =G15-G16 -> 0 | H17: T4
C19: Net Capital Loss Carry Forward Deduction | G19: Total
C20: Actual Historical | F20: H4 | G20: ='H4 Sch 4 Loss Cfwd Hist'!H17 -> 0
C21: Application of Loss Carry Forward to reduce taxable income in Bridge Year
C22: Other Adjustments Add (+) Deduct (-)
C23: Balance available for use in Test Year | F23: calculated | G23: =G20-G21+G22 -> 0
C24: Amount to be used in Bridge Year
C25: Balance available for use post Bridge Year | F25: calculated | G25: =G23-G24 -> 0 | H25: T4

Sheet B8 Schedule 8 CCA Bridge Year
C7: Schedule 8 CCA - Bridge Year
C9: Class | D9: Class Description | E9: Working Paper Reference | F9: UCC Regulated Historical Year | G9: Additions | H9: Disposals (Negative) | I9: UCC Before 1/2 Yr Adjustment | J9: 1/2 Year Rule {1/2 Additions Less Disposals} | K9: Reduced UCC | L9: Rate % | M9: Bridge Year CCA | O9: UCC End of Bridge Year | P9: Working Paper Reference
C10: =IF(ISBLANK('H8 Sch 8 Historical'!C12), "", 'H8 Sch 8 Historical'!C12) -> 1 | D10: =IF(ISBLANK('H8 Sch 8 Historical'!D12), "", 'H8 Sch 8 Historical'!D12) -> Distribution System - post 1987 | E10: H8 | F10: =IF(ISBLANK('H8 Sch 8 Historical'!E12), "", 'H8 Sch 8 Historical'!G12) -> 1183917 | I10: =MAX((SUM(F10:H10)),0) -> 1183917 | J10: =IF((G10+H10)<=0, 0,(G10+H10)*0.5) -> 0 | K10: =+I10-J10 -> 1183917 | L10: 0.04 | M10: =IF(+K10<0,+K10,+K10*L10) -> 47356.68 | O10: =MAX(0,+I10-M10) -> 1136560.32 | P10: T8
C11: =IF(ISBLANK('H8 Sch 8 Historical'!C13), "", 'H8 Sch 8 Historical'!C13) -> 1 Enhanced | D11: =IF(ISBLANK('H8 Sch 8 Historical'!D13), "", 'H8 Sch 8 Historical'!D13) -> Non-residential Buildings Reg. 1100(1)(a.1) election | E11: H8 | F11: =IF(ISBLANK('H8 Sch 8 Historical'!E13), "", 'H8 Sch 8 Historical'!G13) ->  | I11: =MAX((SUM(F11:H11)),0) -> 0 | J11: =IF((G11+H11)<=0, 0,(G11+H11)*0.5) -> 0 | K11: =+I11-J11 -> 0 | L11: 0.06 | M11: 0 | O11: 0 | P11: T8
C12: =IF(ISBLANK('H8 Sch 8 Historical'!C14), "", 'H8 Sch 8 Historical'!C14) -> 2 | D12: =IF(ISBLANK('H8 Sch 8 Historical'!D14), "", 'H8 Sch 8 Historical'!D14) -> Distribution System - pre 1988 | E12: H8 | F12: =IF(ISBLANK('H8 Sch 8 Historical'!E14), "", 'H8 Sch 8 Historical'!G14) ->  | G12: 0 | I12: 0 | J12: 0 | K12: 0 | L12: 0.06 | M12: 0 | O12: 0 | P12: T8
C13: =IF(ISBLANK('H8 Sch 8 Historical'!C15), "", 'H8 Sch 8 Historical'!C15) -> 8 | D13: =IF(ISBLANK('H8 Sch 8 Historical'!D15), "", 'H8 Sch 8 Historical'!D15) -> General Office/Stores Equip | E13: H8 | F13: =IF(ISBLANK('H8 Sch 8 Historical'!E15), "", 'H8 Sch 8 Historical'!G15) -> 17385 | G13: 1000 | I13: 18385 | J13: 500 | K13: 17885 | L13: 0.2 | M13: 3577 | O13: 14808 | P13: T8
C14: =IF(ISBLANK('H8 Sch 8 Historical'!C16), "", 'H8 Sch 8 Historical'!C16) -> 10 | D14: =IF(ISBLANK('H8 Sch 8 Historical'!D16), "", 'H8 Sch 8 Historical'!D16) -> Computer Hardware/ Vehicles | E14: H8 | F14: =IF(ISBLANK('H8 Sch 8 Historical'!E16), "", 'H8 Sch 8 Historical'!G16) -> 69 | G14: 1500 | I14: 1569 | J14: 750 | K14: 819 | L14: 0.3 | M14: 245.7 | O14: 1323.3 | P14: T8
C15: =IF(ISBLANK('H8 Sch 8 Historical'!C17), "", 'H8 Sch 8 Historical'!C17) -> 10.1 | D15: =IF(ISBLANK('H8 Sch 8 Historical'!D17), "", 'H8 Sch 8 Historical'!D17) -> Certain Automobiles | E15: H8 | F15: =IF(ISBLANK('H8 Sch 8 Historical'!E17), "", 'H8 Sch 8 Historical'!G17) ->  | I15: 0 | J15: 0 | K15: 0 | L15: 0.3 | M15: 0 | O15: 0 | P15: T8
C16: =IF(ISBLANK('H8 Sch 8 Historical'!C18), "", 'H8 Sch 8 Historical'!C18) -> 12 | D16: =IF(ISBLANK('H8 Sch 8 Historical'!D18), "", 'H8 Sch 8 Historical'!D18) -> Computer Software | E16: H8 | F16: =IF(ISBLANK('H8 Sch 8 Historical'!E18), "", 'H8 Sch 8 Historical'!G18) ->  | G16: 4500 | I16: 4500 | J16: 2250 | K16: 2250 | L16: 1 | M16: =IF(+K16<0,+K16,+K16*L16) -> 2250 | O16: =MAX(0,+I16-M16) -> 2250 | P16: T8
C17: =IF(ISBLANK('H8 Sch 8 Historical'!C19), "", 'H8 Sch 8 Historical'!C19) -> 13 1 | D17: =IF(ISBLANK('H8 Sch 8 Historical'!D19), "", 'H8 Sch 8 Historical'!D19) -> Lease # 1 | E17: H8 | F17: =IF(ISBLANK('H8 Sch 8 Historical'!E19), "", 'H8 Sch 8 Historical'!G19) ->  | I17: 0 | J17: 0 | K17: 0 | M17: 0 | O17: 0 | P17: T8
C18: =IF(ISBLANK('H8 Sch 8 Historical'!C20), "", 'H8 Sch 8 Historical'!C20) -> 13 2 | D18: =IF(ISBLANK('H8 Sch 8 Historical'!D20), "", 'H8 Sch 8 Historical'!D20) -> Lease #2 | E18: H8 | F18: =IF(ISBLANK('H8 Sch 8 Historical'!E20), "", 'H8 Sch 8 Historical'!G20) ->  | I18: 0 | J18: 0 | K18: 0 | M18: 0 | O18: 0 | P18: T8
C19: =IF(ISBLANK('H8 Sch 8 Historical'!C21), "", 'H8 Sch 8 Historical'!C21) -> 13 3 | D19: =IF(ISBLANK('H8 Sch 8 Historical'!D21), "", 'H8 Sch 8 Historical'!D21) -> Lease # 3 | E19: H8 | F19: =IF(ISBLANK('H8 Sch 8 Historical'!E21), "", 'H8 Sch 8 Historical'!G21) ->  | I19: 0 | J19: 0 | K19: 0 | M19: 0 | O19: 0 | P19: T8
C20: =IF(ISBLANK('H8 Sch 8 Historical'!C22), "", 'H8 Sch 8 Historical'!C22) -> 13 4 | D20: =IF(ISBLANK('H8 Sch 8 Historical'!D22), "", 'H8 Sch 8 Historical'!D22) -> Lease # 4 | E20: H8 | F20: =IF(ISBLANK('H8 Sch 8 Historical'!E22), "", 'H8 Sch 8 Historical'!G22) ->  | I20: 0 | J20: 0 | K20: 0 | M20: 0 | O20: 0 | P20: T8
C21: =IF(ISBLANK('H8 Sch 8 Historical'!C23), "", 'H8 Sch 8 Historical'!C23) -> 14 | D21: =IF(ISBLANK('H8 Sch 8 Historical'!D23), "", 'H8 Sch 8 Historical'!D23) -> Franchise | E21: H8 | F21: =IF(ISBLANK('H8 Sch 8 Historical'!E23), "", 'H8 Sch 8 Historical'!G23) ->  | I21: 0 | J21: 0 | K21: 0 | M21: 0 | O21: 0 | P21: T8
C22: =IF(ISBLANK('H8 Sch 8 Historical'!C24), "", 'H8 Sch 8 Historical'!C24) -> 17 | D22: =IF(ISBLANK('H8 Sch 8 Historical'!D24), "", 'H8 Sch 8 Historical'!D24) -> New Electrical Generating Equipment Acq'd after Feb 27/00 Other Than Bldgs | E22: H8 | F22: =IF(ISBLANK('H8 Sch 8 Historical'!E24), "", 'H8 Sch 8 Historical'!G24) ->  | I22: 0 | J22: 0 | K22: 0 | L22: 0.08 | M22: =IF(+K22<0,+K22,+K22*L22) -> 0 | O22: 0 | P22: T8
C23: =IF(ISBLANK('H8 Sch 8 Historical'!C25), "", 'H8 Sch 8 Historical'!C25) -> 42 | D23: =IF(ISBLANK('H8 Sch 8 Historical'!D25), "", 'H8 Sch 8 Historical'!D25) -> Fibre Optic Cable | E23: H8 | F23: =IF(ISBLANK('H8 Sch 8 Historical'!E25), "", 'H8 Sch 8 Historical'!G25) ->  | I23: 0 | J23: 0 | K23: 0 | L23: 0.12 | M23: =IF(+K23<0,+K23,+K23*L23) -> 0 | O23: 0 | P23: T8
C24: =IF(ISBLANK('H8 Sch 8 Historical'!C26), "", 'H8 Sch 8 Historical'!C26) -> 43.1 | D24: =IF(ISBLANK('H8 Sch 8 Historical'!D26), "", 'H8 Sch 8 Historical'!D26) -> Certain Energy-Efficient Electrical Generating Equipment | E24: H8 | F24: =IF(ISBLANK('H8 Sch 8 Historical'!E26), "", 'H8 Sch 8 Historical'!G26) ->  | I24: 0 | J24: 0 | K24: 0 | L24: 0.3 | M24: 0 | O24: 0 | P24: T8
C25: =IF(ISBLANK('H8 Sch 8 Historical'!C27), "", 'H8 Sch 8 Historical'!C27) -> 43.2 | D25: =IF(ISBLANK('H8 Sch 8 Historical'!D27), "", 'H8 Sch 8 Historical'!D27) -> Certain Clean Energy Generation Equipment | E25: H8 | F25: =IF(ISBLANK('H8 Sch 8 Historical'!E27), "", 'H8 Sch 8 Historical'!G27) ->  | I25: 0 | J25: 0 | K25: 0 | L25: 0.5 | M25: 0 | O25: 0 | P25: T8
C26: =IF(ISBLANK('H8 Sch 8 Historical'!C28), "", 'H8 Sch 8 Historical'!C28) -> 45 | D26: =IF(ISBLANK('H8 Sch 8 Historical'!D28), "", 'H8 Sch 8 Historical'!D28) -> Computers & Systems Software acq'd post Mar 22/04 | E26: H8 | F26: =IF(ISBLANK('H8 Sch 8 Historical'!E28), "", 'H8 Sch 8 Historical'!G28) -> 19 | I26: 19 | J26: 0 | K26: 19 | L26: 0.45 | M26: 8.55 | O26: 10.45 | P26: T8
C27: =IF(ISBLANK('H8 Sch 8 Historical'!C29), "", 'H8 Sch 8 Historical'!C29) -> 46 | D27: =IF(ISBLANK('H8 Sch 8 Historical'!D29), "", 'H8 Sch 8 Historical'!D29) -> Data Network Infrastructure Equipment (acq'd post Mar 22/04) | E27: H8 | F27: =IF(ISBLANK('H8 Sch 8 Historical'!E29), "", 'H8 Sch 8 Historical'!G29) ->  | I27: 0 | J27: 0 | K27: 0 | L27: 0.3 | M27: 0 | O27: 0 | P27: T8
C28: =IF(ISBLANK('H8 Sch 8 Historical'!C30), "", 'H8 Sch 8 Historical'!C30) -> 47 | D28: =IF(ISBLANK('H8 Sch 8 Historical'!D30), "", 'H8 Sch 8 Historical'!D30) -> Distribution System - post February 2005 | E28: H8 | F28: =IF(ISBLANK('H8 Sch 8 Historical'!E30), "", 'H8 Sch 8 Historical'!G30) -> 1469331 | G28: =1831996-132000+1346 -> 1701342 | I28: 3170673 | J28: 850671 | K28: 2320002 | L28: 0.08 | M28: 185600.16 | O28: 2985072.84 | P28: T8
C29: =IF(ISBLANK('H8 Sch 8 Historical'!C31), "", 'H8 Sch 8 Historical'!C31) -> 50 | D29: =IF(ISBLANK('H8 Sch 8 Historical'!D31), "", 'H8 Sch 8 Historical'!D31) -> Data Network Infrastructure Equipment - post Mar 2007 | E29: H8 | F29: =IF(ISBLANK('H8 Sch 8 Historical'!E31), "", 'H8 Sch 8 Historical'!G31) -> 9300 | I29: 9300 | J29: 0 | K29: 9300 | L29: 0.55 | M29: 5115 | O29: 4185 | P29: T8
C30: =IF(ISBLANK('H8 Sch 8 Historical'!C32), "", 'H8 Sch 8 Historical'!C32) -> 52 | D30: =IF(ISBLANK('H8 Sch 8 Historical'!D32), "", 'H8 Sch 8 Historical'!D32) -> Computer Hardware and system software | E30: H8 | F30: =IF(ISBLANK('H8 Sch 8 Historical'!E32), "", 'H8 Sch 8 Historical'!G32) ->  | I30: 0 | J30: 0 | K30: 0 | L30: 1 | M30: 0 | O30: 0 | P30: T8
C31: =IF(ISBLANK('H8 Sch 8 Historical'!C33), "", 'H8 Sch 8 Historical'!C33) -> 95 | D31: =IF(ISBLANK('H8 Sch 8 Historical'!D33), "", 'H8 Sch 8 Historical'!D33) -> CWIP | E31: H8 | F31: =IF(ISBLANK('H8 Sch 8 Historical'!E33), "", 'H8 Sch 8 Historical'!G33) ->  | I31: 0 | J31: 0 | K31: 0 | M31: 0 | O31: 0 | P31: T8
C32: =IF(ISBLANK('H8 Sch 8 Historical'!C34), "", 'H8 Sch 8 Historical'!C34) ->  | D32: =IF(ISBLANK('H8 Sch 8 Historical'!D34), "", 'H8 Sch 8 Historical'!D34) ->  | F32: =IF(ISBLANK('H8 Sch 8 Historical'!E34), "", 'H8 Sch 8 Historical'!G34) ->  | I32: 0 | J32: 0 | K32: 0 | M32: 0 | O32: 0
C33: =IF(ISBLANK('H8 Sch 8 Historical'!C35), "", 'H8 Sch 8 Historical'!C35) ->  | D33: =IF(ISBLANK('H8 Sch 8 Historical'!D35), "", 'H8 Sch 8 Historical'!D35) ->  | F33: =IF(ISBLANK('H8 Sch 8 Historical'!E35), "", 'H8 Sch 8 Historical'!G35) ->  | I33: 0 | J33: 0 | K33: 0 | M33: 0 | O33: 0
C34: =IF(ISBLANK('H8 Sch 8 Historical'!C36), "", 'H8 Sch 8 Historical'!C36) ->  | D34: =IF(ISBLANK('H8 Sch 8 Historical'!D36), "", 'H8 Sch 8 Historical'!D36) ->  | I34: =MAX((SUM(F34:H34)),0) -> 0 | J34: 0 | K34: =+I34-J34 -> 0 | M34: 0 | O34: 0
C35: =IF(ISBLANK('H8 Sch 8 Historical'!C37), "", 'H8 Sch 8 Historical'!C37) ->  | D35: =IF(ISBLANK('H8 Sch 8 Historical'!D37), "", 'H8 Sch 8 Historical'!D37) ->  | F35: =IF(ISBLANK('H8 Sch 8 Historical'!E37), "", 'H8 Sch 8 Historical'!G37) ->  | I35: =MAX((SUM(F35:H35)),0) -> 0 | J35: 0 | K35: =+I35-J35 -> 0 | M35: 0 | O35: 0
C36: =IF(ISBLANK('H8 Sch 8 Historical'!C38), "", 'H8 Sch 8 Historical'!C38) ->  | D36: =IF(ISBLANK('H8 Sch 8 Historical'!D38), "", 'H8 Sch 8 Historical'!D38) ->  | F36: =IF(ISBLANK('H8 Sch 8 Historical'!E38), "", 'H8 Sch 8 Historical'!G38) ->  | I36: =MAX((SUM(F36:H36)),0) -> 0 | J36: 0 | K36: =+I36-J36 -> 0 | M36: 0 | O36: 0
C37: =IF(ISBLANK('H8 Sch 8 Historical'!C39), "", 'H8 Sch 8 Historical'!C39) ->  | D37: =IF(ISBLANK('H8 Sch 8 Historical'!D39), "", 'H8 Sch 8 Historical'!D39) ->  | F37: =IF(ISBLANK('H8 Sch 8 Historical'!E39), "", 'H8 Sch 8 Historical'!G39) ->  | I37: 0 | J37: 0 | K37: 0 | M37: 0 | O37: 0
C38: =IF(ISBLANK('H8 Sch 8 Historical'!C40), "", 'H8 Sch 8 Historical'!C40) ->  | D38: =IF(ISBLANK('H8 Sch 8 Historical'!D40), "", 'H8 Sch 8 Historical'!D40) ->  | F38: =IF(ISBLANK('H8 Sch 8 Historical'!E40), "", 'H8 Sch 8 Historical'!G40) ->  | I38: 0 | J38: 0 | K38: 0 | M38: 0 | O38: 0
C39: =IF(ISBLANK('H8 Sch 8 Historical'!C41), "", 'H8 Sch 8 Historical'!C41) ->  | D39: =IF(ISBLANK('H8 Sch 8 Historical'!D41), "", 'H8 Sch 8 Historical'!D41) ->  | F39: =IF(ISBLANK('H8 Sch 8 Historical'!E41), "", 'H8 Sch 8 Historical'!G41) ->  | I39: 0 | J39: 0 | K39: 0 | M39: 0 | O39: 0
C40: =IF(ISBLANK('H8 Sch 8 Historical'!C42), "", 'H8 Sch 8 Historical'!C42) ->  | D40: =IF(ISBLANK('H8 Sch 8 Historical'!D42), "", 'H8 Sch 8 Historical'!D42) ->  | F40: =IF(ISBLANK('H8 Sch 8 Historical'!E42), "", 'H8 Sch 8 Historical'!G42) ->  | I40: 0 | J40: 0 | K40: 0 | M40: 0 | O40: 0
C41: =IF(ISBLANK('H8 Sch 8 Historical'!C43), "", 'H8 Sch 8 Historical'!C43) ->  | D41: =IF(ISBLANK('H8 Sch 8 Historical'!D43), "", 'H8 Sch 8 Historical'!D43) ->  | F41: =IF(ISBLANK('H8 Sch 8 Historical'!E43), "", 'H8 Sch 8 Historical'!G43) ->  | I41: 0 | J41: 0 | K41: 0 | M41: 0 | O41: 0
D42: TOTAL | F42: =SUM(F10:F41) -> 2680021 | G42: 1708342 | H42: 0 | I42: 4388363 | J42: 854171 | K42: 3534192 | M42: =SUM(M10:M41) -> 244153.09 | N42: B1 | O42: =SUM(O10:O41) -> 4144209.91

Sheet B10 Schedule 10 CEC Bridge Year
C6: Schedule 10 CEC - Bridge Year
J9: Reference
C10: Cumulative Eligible Capital | J10: H10 | K10: ='H10 Schedule 10 CEC Hist'!K40 -> 33874.32
C11: Additions
C12: Cost of Eligible Capital Property Acquired during Test Year
C14: Other Adjustments | G14: 0
C16: Subtotal | G16: =SUM(G12,G14) -> 0 | I16: x 3/4 = | J16: =3/4*G16 -> 0
C18: Non-taxable portion of a non-arm's length transferor's gain realized on the | G18: 0 | I18: x 1/2 = | J18: =IF((G18*0.5)<0, 0, G18*0.5) -> 0
C19: transfer of an ECP to the Corporation after Friday, December 20, 2002
J20: =IF((J16-J18)<0,0,J16-J18) -> 0 | K20: =J20 -> 0
C22: Amount transferred on amalgamation or wind-up of subsidiary | G22: 0 | K22: =G22 -> 0
F24: Subtotal | K24: =SUM(K10,K20,K22) -> 33874.32
C26: Deductions
C28: Proceeds of sale (less outlays and expenses not otherwise deductible)
C29: from the disposition of all ECP during Test Year
C31: Other Adjustments | G31: 0
F33: Subtotal | G33: =SUM(G31,G28) -> 0 | I33: x 3/4 = | K33: =G33*3/4 -> 0
C36: Cumulative Eligible Capital Balance | K36: =K24-K33 -> 33874.32
C38: Current Year Deduction | I38: =K36 -> 33874.32 | J38: x 7% = | K38: =I38*0.07 -> 2371.2024 | L38: B1
C40: Cumulative Eligible Capital - Closing Balance | K40: =K36-K38 -> 31503.1176 | L40: T8

Sheet B13 Sch 13 Tax Reserves Bridge
C7: Schedule 13 Tax Reserves - Bridge Year
C9: Continuity of Reserves
I10: Bridge Year Adjustments
C11: Description | D11: Reference | E11: Historical Utility Only | F11: Eliminate Amounts Not Relevant for Bridge Year | G11: Adjusted Utility Balance | I11: Additions | J11: Disposals | K11: Balance for Bridge Year | M11: Change During the Year | N11: Disallowed Expenses
C13: Capital Gains Reserves ss.40(1) | D13: H13 | E13: ='H13 Sch 13 Tax Reserves Histori'!F15 -> 0 | G13: =SUM(E13:F13) -> 0 | K13: =G13+I13-J13 -> 0 | L13: T13 | M13: =+K13-G13 -> 0
C14: Tax Reserves Not Deducted for accounting purposes
C15: Reserve for doubtful accounts ss. 20(1)(l) | D15: H13 | E15: ='H13 Sch 13 Tax Reserves Histori'!F17 -> 0 | G15: =SUM(E15:F15) -> 0 | K15: =G15+I15-J15 -> 0 | L15: T13 | M15: =+K15-G15 -> 0
C16: Reserve for goods and services not delivered ss. 20(1)(m) | D16: H13 | E16: ='H13 Sch 13 Tax Reserves Histori'!F18 -> 0 | G16: 0 | K16: 0 | L16: T13 | M16: 0
C17: Reserve for unpaid amounts ss. 20(1)(n) | D17: H13 | E17: ='H13 Sch 13 Tax Reserves Histori'!F19 -> 0 | G17: 0 | K17: 0 | L17: T13 | M17: 0
C18: Debt & Share Issue Expenses ss. 20(1)(e) | D18: H13 | E18: ='H13 Sch 13 Tax Reserves Histori'!F20 -> 0 | G18: 0 | K18: 0 | L18: T13 | M18: 0
C19: Other tax reserves | D19: H13 | E19: ='H13 Sch 13 Tax Reserves Histori'!F21 -> 0 | G19: 0 | K19: 0 | L19: T13 | M19: 0
E20: ='H13 Sch 13 Tax Reserves Histori'!F25 -> 0 | G20: 0 | K20: 0 | M20: 0
E21: ='H13 Sch 13 Tax Reserves Histori'!F26 -> 0 | G21: 0 | K21: 0 | M21: 0
C22: Total | E22: =SUM(E15:E21) -> 0 | F22: 0 | G22: 0 | H22: B1 | I22: 0 | J22: 0 | K22: 0 | L22: B1 | M22: 0 | N22: 0
E23: 0
C24: Financial Statement Reserves (not deductible for Tax Purposes)
C25: General Reserve for Inventory Obsolescence (non-specific) | D25: H13 | E25: ='H13 Sch 13 Tax Reserves Histori'!F30 -> 0 | G25: =SUM(E25:F25) -> 0 | K25: =G25+I25-J25 -> 0 | L25: T13 | M25: =+K25-G25 -> 0
C26: General reserve for bad debts | D26: H13 | E26: ='H13 Sch 13 Tax Reserves Histori'!F31 -> 0 | G26: 0 | K26: 0 | L26: T13 | M26: 0
C27: Accrued Employee Future Benefits: | D27: H13 | E27: ='H13 Sch 13 Tax Reserves Histori'!F32 -> 0 | G27: 0 | K27: 0 | L27: T13 | M27: 0
C28: - Medical and Life Insurance | D28: H13 | E28: ='H13 Sch 13 Tax Reserves Histori'!F33 -> 0 | G28: 0 | K28: 0 | L28: T13 | M28: 0
C29: -Short & Long-term Disability | D29: H13 | E29: ='H13 Sch 13 Tax Reserves Histori'!F34 -> 0 | G29: 0 | K29: 0 | L29: T13 | M29: 0
C30: -Accmulated Sick Leave | D30: H13 | E30: ='H13 Sch 13 Tax Reserves Histori'!F35 -> 0 | G30: 0 | K30: 0 | L30: T13 | M30: 0
C31: - Termination Cost | D31: H13 | E31: ='H13 Sch 13 Tax Reserves Histori'!F36 -> 0 | G31: 0 | K31: 0 | L31: T13 | M31: 0
C32: - Other Post-Employment Benefits | D32: H13 | E32: ='H13 Sch 13 Tax Reserves Histori'!F37 -> 0 | G32: 0 | K32: 0 | L32: T13 | M32: 0
C33: Provision for Environmental Costs | D33: H13 | E33: ='H13 Sch 13 Tax Reserves Histori'!F38 -> 0 | G33: 0 | K33: 0 | L33: T13 | M33: 0
C34: Restructuring Costs | D34: H13 | E34: ='H13 Sch 13 Tax Reserves Histori'!F39 -> 0 | G34: 0 | K34: 0 | L34: T13 | M34: 0
C35: Accrued Contingent Litigation Costs | D35: H13 | E35: ='H13 Sch 13 Tax Reserves Histori'!F40 -> 0 | G35: 0 | K35: 0 | L35: T13 | M35: 0
C36: Accrued Self-Insurance Costs | D36: H13 | E36: ='H13 Sch 13 Tax Reserves Histori'!F41 -> 0 | G36: 0 | K36: 0 | L36: T13 | M36: 0
C37: Other Contingent Liabilities | D37: H13 | E37: ='H13 Sch 13 Tax Reserves Histori'!F42 -> 0 | G37: 0 | K37: 0 | L37: T13 | M37: 0
C38: Bonuses Accrued and Not Paid Within 180 Days of Year-End ss. 78(4) | D38: H13 | E38: ='H13 Sch 13 Tax Reserves Histori'!F43 -> 0 | G38: 0 | K38: 0 | L38: T13 | M38: 0
C39: Unpaid Amounts to Related Person and Not Paid Within 3 Taxation Years ss. 78(1) | D39: H13 | E39: ='H13 Sch 13 Tax Reserves Histori'!F44 -> 0 | G39: 0 | K39: 0 | L39: T13 | M39: 0
C40: Other | D40: H13 | E40: ='H13 Sch 13 Tax Reserves Histori'!F45 -> 0 | G40: 0 | K40: 0 | L40: T13 | M40: 0
E41: ='H13 Sch 13 Tax Reserves Histori'!F49 -> 0 | G41: =SUM(E41:F41) -> 0 | K41: 0 | M41: =+K41-G41 -> 0
E42: ='H13 Sch 13 Tax Reserves Histori'!F50 -> 0 | G42: =SUM(E42:F42) -> 0 | K42: 0 | M42: =+K42-G42 -> 0
C43: Total | E43: =SUM(E25:E42) -> 0 | F43: =SUM(F25:F42) -> 0 | G43: 0 | H43: B1 | I43: 0 | J43: 0 | K43: 0 | L43: B1 | M43: 0 | N43: 0
E44: 0

Sheet T0 PILs,Tax Provision
T1: Rate Base | U1: Federal Tax Rate
T2: 500000 | U2: 0.11
T3: 10000000 | U3: 0.11
T4: =T3+100000 -> 10100000 | U4: 0.11
T5: =T4+100000 -> 10200000 | U5: 0.11
B6: PILs Tax Provision - Test Year | T6: 10300000 | U6: 0.11
T7: 10400000 | U7: 0.11
J8: Wires Only | T8: 10500000 | U8: 0.11
T9: 10600000 | U9: 0.11
C10: Regulatory Taxable Income | I10: T1 | J10: ='T1 Taxable Income Test Year'!F124 -> 23098.97436 | K10: A | T10: 10700000 | U10: 0.11
T11: 10800000 | U11: 0.11
D12: Tax Rate | E12: Small Business Rate (If Applicable) | F12: Taxes Payable | G12: Effective Tax Rate
C13: Ontario (Max 11.5%) | D13: 0.115 | E13: =IF(ratebase<=10000000, ontario_SB, IF(ratebase>=15000000, ontariotax, IF(AND(ratebase>10000000, ratebase<15000000), ontario_SB+ (ratebase - 10000000)*(ontariotax - ontario_SB)/(15000000-10000000)))) -> 0.045 | F13: =IF(J10<500000,J10,500000)*E13+IF(J10>500000,J10-500000,0)*D13 -> 1039.453846 | G13: =IF(F13=0,0,+F13/J10) -> 0.045 | H13: B
C14: Federal (Max 15%) | D14: 0.15 | E14: =IF(ratebase<=10000000, Fed_SB, IF(ratebase>=15000000, FedTax, IF(AND(ratebase>10000000, ratebase<15000000), Fed_SB+ (ratebase - 10000000)*(FedTax -Fed_SB)/(15000000-10000000)))) -> 0.105 | F14: =E14*IF(J10<500000,J10,500000)+IF(J10>500000,J10-500000,0)*D14 -> 2425.392308 | G14: =IF(F14=0,0,+F14/J10) -> 0.105 | H14: C
C16: Combined effective tax rate (Max 26.5%) | J16: =SUM(G13:G14) -> 0.15 | K16: D = B + C | T16: =#REF!+100000 ->  | U16: =#REF!+0.112% -> 
U17: =U16+0.112% -> 
C19: Total Income Taxes | J19: =J10*J16 -> 3464.846154 | K19: E = A * D
U20: =U19+0.102% -> 
C21: Investment Tax Credits | K21: F | U21: =U20+0.102% -> 
C22: Miscellaneous Tax Credits | K22: G | U22: =U21+0.102% -> 
C23: Total Tax Credits | J23: =SUM(J21:J22) -> 0 | K23: H = F + G | U23: =U22+0.102% -> 
U24: =U23+0.102% -> 
C25: Corporate PILs/Income Tax Provision for Test Year | J25: =IF(J19-J23<0,0,J19-J23) -> 3464.846154 | K25: I = E - H | L25: S. Summary | U25: =U24+0.096% -> 
U26: =U25+0.096% -> 
C27: Corporate PILs/Income Tax Provision Gross Up 1 | H27: =(1-J16) -> 0.85 | I27: J = 1-D | J27: =J25/H27-J25 -> 611.443439 | K27: K = I/J-I | U27: =U26+0.096% -> 
U28: =U27+0.096% -> 
U29: =U28+0.096% -> 
C30: Income Tax (grossed-up) | J30: =J25+J27 -> 4076.289593 | K30: L = K + I | L30: S. Summary | U30: =U29+0.088% -> 
U31: =U30+0.088% -> 
U32: =U31+0.088% -> 
C33: Note: | U33: =U32+0.088% -> 
C34: 1. This is for the derivation of revenue requirement and should not be used for sufficiency/deficiency calculations. | U34: =U33+0.088% -> 
U35: =U34+0.082% -> 
U36: =U35+0.082% -> 
U37: =U36+0.082% -> 
U38: =U37+0.082% -> 
U39: =U38+0.082% -> 
U40: =U39+0.076% -> 
U41: =U40+0.076% -> 
U42: =U41+0.076% -> 
U43: =U42+0.076% -> 
U44: 0.15

Sheet T1 Taxable Income Test Year
C10: Taxable Income - Test Year
E11: Working Paper Reference | F11: Test Year Taxable Income
C12: Net Income Before Taxes | E12: A. | F12: ='A. Data Input Sheet'!G18 -> 164375.8933
D14: T2 S1 line #
C15: Additions:
C16: Interest and penalties on taxes | D16: 103
C17: Amortization of tangible assets 2-4 ADJUSTED ACCOUNTING DATA P489 | D17: 104 | F17: 165121
C18: Amortization of intangible assets 2-4 ADJUSTED ACCOUNTING DATA P490 | D18: 106
C19: Recapture of capital cost allowance from Schedule 8 | D19: 107
C20: Gain on sale of eligible capital property from Schedule 10 | D20: 108
C21: Income or loss for tax purposes- joint ventures or partnerships | D21: 109
C22: Loss in equity of subsidiaries and affiliates | D22: 110
C23: Loss on disposal of assets | D23: 111
C24: Charitable donations | D24: 112
C25: Taxable Capital Gains | D25: 113
C26: Political Donations | D26: 114
C27: Deferred and prepaid expenses | D27: 116
C28: Scientific research expenditures deducted on financial statements | D28: 118
C29: Capitalized interest | D29: 119
C30: Non-deductible club dues and fees | D30: 120
C31: Non-deductible meals and entertainment expense | D31: 121
C32: Non-deductible automobile expenses | D32: 122
C33: Non-deductible life insurance premiums | D33: 123
C34: Non-deductible company pension plans | D34: 124
C35: Tax reserves beginning of year | D35: 125 | E35: T13 | F35: ='T13 Sch 13 Reserve Test Year'!G22 -> 0
C36: Reserves from financial statements- balance at end of year | D36: 126 | E36: T13 | F36: ='T13 Sch 13 Reserve Test Year'!K43 -> 0
C37: Soft costs on construction and renovation of buildings | D37: 127
C38: Book loss on joint ventures or partnerships | D38: 205
C39: Capital items expensed | D39: 206
C40: Debt issue expense | D40: 208
C41: Development expenses claimed in current year | D41: 212
C42: Financing fees deducted in books | D42: 216
C43: Gain on settlement of debt | D43: 220
C44: Non-deductible advertising | D44: 226
C45: Non-deductible interest | D45: 227
C46: Non-deductible legal and accounting fees | D46: 228
C47: Recapture of SR&ED expenditures | D47: 231
C48: Share issue expense | D48: 235
C49: Write down of capital property | D49: 236
C50: Amounts received in respect of qualifying environment trust per paragraphs 12(1)(z.1) and 12(1)(z.2) | D50: 237
C51: Other Additions: (please explain in detail the nature of the item)
C52: Interest Expensed on Capital Leases | D52: 290
C53: Realized Income from Deferred Credit Accounts | D53: 291
C54: Pensions | D54: 292
C55: Non-deductible penalties | D55: 293
D56: 294
D57: 295
D58: 296
D59: 297
C60: ARO Accretion expense
C61: Capital Contributions Received (ITA 12(1)(x))
C62: Lease Inducements Received (ITA 12(1)(x))
C63: Deferred Revenue (ITA 12(1)(a))
C64: Prior Year Investment Tax Credits received
F65: 0
C75: Total Additions | F75: =SUM(F16:F74) -> 165121
C76: Deductions:
C77: Gain on disposal of assets per financial statements | D77: 401
C78: Dividends not taxable under section 83 | D78: 402
C79: Capital cost allowance from Schedule 8 | D79: 403 | E79: T8 | F79: ='T8 Schedule 8 CCA Test Year '!M43 -> 304192.7007
C80: Terminal loss from Schedule 8 | D80: 404
C81: Cumulative eligible capital deduction from Schedule 10 CEC | D81: 405 | E81: T10 | F81: ='T10 Schedule 10 CEC Test Year'!K37 -> 2205.218232
C82: Allowable business investment loss | D82: 406
C83: Deferred and prepaid expenses | D83: 409
C84: Scientific research expenses claimed in year | D84: 411
C85: Tax reserves end of year | D85: 413 | E85: T13 | F85: ='T13 Sch 13 Reserve Test Year'!K22 -> 0
C86: Reserves from financial statements - balance at beginning of year | D86: 414 | E86: T13 | F86: ='T13 Sch 13 Reserve Test Year'!G43 -> 0
C87: Contributions to deferred income plans | D87: 416
C88: Book income of joint venture or partnership | D88: 305
C89: Equity in income from subsidiary or affiliates | D89: 306
C90: Other deductions: (Please explain in detail the nature of the item)
C91: Interest capitalized for accounting deducted for tax | D91: 390
C92: Capital Lease Payments | D92: 391
C93: Non-taxable imputed interest income on deferral and variance accounts | D93: 392
D94: 393 | F94: 0
D95: 394
D96: 395
D97: 396
D98: 397
C99: ARO Payments - Deductible for Tax when Paid
C100: ITA 13(7.4) Election - Capital Contributions Received
C101: ITA 13(7.4) Election - Apply Lease Inducement to cost of Leaseholds
C102: Deferred Revenue - ITA 20(1)(m) reserve
C103: Principal portion of lease payments
C104: Lease Inducement Book Amortization credit to income
C105: Financing fees for tax ITA 20(1)(e) and (e.1)
C114: Total Deductions | E114: calculated | F114: =SUM(F77:F113) -> 306397.919
C116: NET INCOME FOR TAX PURPOSES | E116: calculated | F116: =SUM(F12,F75)-F114 -> 23098.97436
C118: Charitable donations | D118: 311
C119: Taxable dividends received under section 112 or 113 | D119: 320
C120: Non-capital losses of preceding taxation years from Schedule 7-1 | D120: 331 | E120: T4 | F120: ='T4 Sch 4 Loss Cfwd'!I16 -> 0
C121: Net-capital losses of preceding taxation years (Please show calculation) | D121: 332
C122: Limited partnership losses of preceding taxation years from Schedule 4 | D122: 335
C124: REGULATORY TAXABLE INCOME | E124: calculated | F124: =IF(F116<0,F116,F116-SUM(F118:F123)) -> 23098.97436 | G124: T0

Sheet T4 Sch 4 Loss Cfwd
C7: Schedule 7-1 Loss Carry Forward - Test Year
C9: Corporation Loss Continuity and Application
C11: Non-Capital Loss Carry Forward Deduction | F11: Working Paper Reference | G11: Total | H11: Non-Distribution Portion | I11: Utility Balance
C12: Actual/Estimated Bridge Year | F12: B4 | G12: ='B4 Sch 4 Loss Cfwd Bridge'!G17 -> 0 | I12: =G12-H12 -> 0
I13: =G13-H13 -> 0
C14: Other Adjustments Add (+) Deduct (-) | F14: T1 | G14: =IF('T1 Taxable Income Test Year'!F116<0,'T1 Taxable Income Test Year'!F116*-1,0) -> 0 | I14: =G14-H14 -> 0
C15: Balance available for use in Future Years | F15: calculated | G15: =G12+G13+G14 -> 0 | H15: =H12+H13+H14 -> 0 | I15: =I12+I13+I14 -> 0
C16: Amount to be used in Test Year | F16: T1 | G16: =IF('T1 Taxable Income Test Year'!F116<0,0,IF('T1 Taxable Income Test Year'!F116>G15,G15,'T1 Taxable Income Test Year'!F116)) -> 0 | I16: =G16-H16 -> 0
C17: Balance available for use post Test Year | F17: calculated | G17: =G15-G16 -> 0 | H17: =H15-H16 -> 0 | I17: =I15-I16 -> 0
C19: Net Capital Loss Carry Forward Deduction | G19: Total | H19: Non-Distribution Portion | I19: Utility Balance
C20: Actual/Estimated Bridge Year | F20: B4 | G20: ='B4 Sch 4 Loss Cfwd Bridge'!G25 -> 0 | I20: =G20-H20 -> 0
I21: =G21-H21 -> 0
C22: Other Adjustments Add (+) Deduct (-) | I22: =G22-H22 -> 0
C23: Balance available for use in Future Years | F23: calculated | G23: =G20-G21+G22 -> 0 | H23: =H20-H21+H22 -> 0 | I23: =I20-I21+I22 -> 0
C24: Amount to be used in Test Year | I24: =G24-H24 -> 0
C25: Balance available for use post Test Year | F25: calculated | G25: =G23-G24 -> 0 | H25: =H23-H24 -> 0 | I25: =I23-I24 -> 0

Sheet T8 Schedule 8 CCA Test Year
B7: Schedule 8 CCA - Test Year
C10: Class | D10: Class Description | E10: Working Paper Reference | F10: UCC Test Year Opening Balance | G10: Additions | H10: Disposals (Negative) | I10: UCC Before 1/2 Yr Adjustment | J10: 1/2 Year Rule {1/2 Additions Less Disposals} | K10: Reduced UCC | L10: Rate % | M10: Test Year CCA | O10: UCC End of Test Year
C11: =IF(ISBLANK('B8 Schedule 8 CCA Bridge Year'!C10), "", 'B8 Schedule 8 CCA Bridge Year'!C10) -> 1 | D11: =IF(ISBLANK('B8 Schedule 8 CCA Bridge Year'!D10), "", 'B8 Schedule 8 CCA Bridge Year'!D10) -> Distribution System - post 1987 | E11: B8 | F11: =IF(ISBLANK('B8 Schedule 8 CCA Bridge Year'!O10), "", 'B8 Schedule 8 CCA Bridge Year'!O10) -> 1136560.32 | I11: =MAX((SUM(F11:H11)),0) -> 1136560.32 | J11: =IF((G11+H11)<=0, 0,(G11+H11)*0.5) -> 0 | K11: =+I11-J11 -> 1136560.32 | L11: ='B8 Schedule 8 CCA Bridge Year'!L10 -> 0.04 | M11: =IF(+K11<0,+K11,+K11*L11) -> 45462.4128 | O11: =MAX(0,+I11-M11) -> 1091097.907
C12: =IF(ISBLANK('B8 Schedule 8 CCA Bridge Year'!C11), "", 'B8 Schedule 8 CCA Bridge Year'!C11) -> 1 Enhanced | D12: =IF(ISBLANK('B8 Schedule 8 CCA Bridge Year'!D11), "", 'B8 Schedule 8 CCA Bridge Year'!D11) -> Non-residential Buildings Reg. 1100(1)(a.1) election | E12: B8 | F12: =IF(ISBLANK('B8 Schedule 8 CCA Bridge Year'!O11), "", 'B8 Schedule 8 CCA Bridge Year'!O11) -> 0 | I12: 0 | J12: =IF((G12+H12)<=0, 0,(G12+H12)*0.5) -> 0 | K12: 0 | L12: ='B8 Schedule 8 CCA Bridge Year'!L11 -> 0.06 | M12: 0 | O12: 0
C13: =IF(ISBLANK('B8 Schedule 8 CCA Bridge Year'!C12), "", 'B8 Schedule 8 CCA Bridge Year'!C12) -> 2 | D13: =IF(ISBLANK('B8 Schedule 8 CCA Bridge Year'!D12), "", 'B8 Schedule 8 CCA Bridge Year'!D12) -> Distribution System - pre 1988 | E13: B8 | F13: =IF(ISBLANK('B8 Schedule 8 CCA Bridge Year'!O12), "", 'B8 Schedule 8 CCA Bridge Year'!O12) -> 0 | I13: 0 | J13: 0 | K13: 0 | L13: ='B8 Schedule 8 CCA Bridge Year'!L12 -> 0.06 | M13: 0 | O13: 0
C14: =IF(ISBLANK('B8 Schedule 8 CCA Bridge Year'!C13), "", 'B8 Schedule 8 CCA Bridge Year'!C13) -> 8 | D14: =IF(ISBLANK('B8 Schedule 8 CCA Bridge Year'!D13), "", 'B8 Schedule 8 CCA Bridge Year'!D13) -> General Office/Stores Equip | E14: B8 | F14: =IF(ISBLANK('B8 Schedule 8 CCA Bridge Year'!O13), "", 'B8 Schedule 8 CCA Bridge Year'!O13) -> 14808 | G14: 1200 | I14: 16008 | J14: 600 | K14: 15408 | L14: ='B8 Schedule 8 CCA Bridge Year'!L13 -> 0.2 | M14: 3081.6 | O14: 12926.4
C15: =IF(ISBLANK('B8 Schedule 8 CCA Bridge Year'!C14), "", 'B8 Schedule 8 CCA Bridge Year'!C14) -> 10 | D15: =IF(ISBLANK('B8 Schedule 8 CCA Bridge Year'!D14), "", 'B8 Schedule 8 CCA Bridge Year'!D14) -> Computer Hardware/ Vehicles | E15: B8 | F15: =IF(ISBLANK('B8 Schedule 8 CCA Bridge Year'!O14), "", 'B8 Schedule 8 CCA Bridge Year'!O14) -> 1323.3 | G15: 1500 | I15: 2823.3 | J15: 750 | K15: 2073.3 | L15: ='B8 Schedule 8 CCA Bridge Year'!L14 -> 0.3 | M15: 621.99 | O15: 2201.31
C16: =IF(ISBLANK('B8 Schedule 8 CCA Bridge Year'!C15), "", 'B8 Schedule 8 CCA Bridge Year'!C15) -> 10.1 | D16: =IF(ISBLANK('B8 Schedule 8 CCA Bridge Year'!D15), "", 'B8 Schedule 8 CCA Bridge Year'!D15) -> Certain Automobiles | E16: B8 | F16: =IF(ISBLANK('B8 Schedule 8 CCA Bridge Year'!O15), "", 'B8 Schedule 8 CCA Bridge Year'!O15) -> 0 | I16: 0 | J16: 0 | K16: 0 | L16: ='B8 Schedule 8 CCA Bridge Year'!L15 -> 0.3 | M16: 0 | O16: 0
C17: =IF(ISBLANK('B8 Schedule 8 CCA Bridge Year'!C16), "", 'B8 Schedule 8 CCA Bridge Year'!C16) -> 12 | D17: =IF(ISBLANK('B8 Schedule 8 CCA Bridge Year'!D16), "", 'B8 Schedule 8 CCA Bridge Year'!D16) -> Computer Software | E17: B8 | F17: =IF(ISBLANK('B8 Schedule 8 CCA Bridge Year'!O16), "", 'B8 Schedule 8 CCA Bridge Year'!O16) -> 2250 | G17: 3000 | I17: 5250 | J17: 1500 | K17: 3750 | L17: ='B8 Schedule 8 CCA Bridge Year'!L16 -> 1 | M17: 3750 | O17: 1500
C18: =IF(ISBLANK('B8 Schedule 8 CCA Bridge Year'!C17), "", 'B8 Schedule 8 CCA Bridge Year'!C17) -> 13 1 | D18: =IF(ISBLANK('B8 Schedule 8 CCA Bridge Year'!D17), "", 'B8 Schedule 8 CCA Bridge Year'!D17) -> Lease # 1 | E18: B8 | F18: =IF(ISBLANK('B8 Schedule 8 CCA Bridge Year'!O17), "", 'B8 Schedule 8 CCA Bridge Year'!O17) -> 0 | I18: 0 | J18: 0 | K18: 0 | M18: 0 | O18: 0
C19: =IF(ISBLANK('B8 Schedule 8 CCA Bridge Year'!C18), "", 'B8 Schedule 8 CCA Bridge Year'!C18) -> 13 2 | D19: =IF(ISBLANK('B8 Schedule 8 CCA Bridge Year'!D18), "", 'B8 Schedule 8 CCA Bridge Year'!D18) -> Lease #2 | E19: B8 | F19: =IF(ISBLANK('B8 Schedule 8 CCA Bridge Year'!O18), "", 'B8 Schedule 8 CCA Bridge Year'!O18) -> 0 | I19: 0 | J19: 0 | K19: 0 | M19: 0 | O19: 0
C20: =IF(ISBLANK('B8 Schedule 8 CCA Bridge Year'!C19), "", 'B8 Schedule 8 CCA Bridge Year'!C19) -> 13 3 | D20: =IF(ISBLANK('B8 Schedule 8 CCA Bridge Year'!D19), "", 'B8 Schedule 8 CCA Bridge Year'!D19) -> Lease # 3 | E20: B8 | F20: =IF(ISBLANK('B8 Schedule 8 CCA Bridge Year'!O19), "", 'B8 Schedule 8 CCA Bridge Year'!O19) -> 0 | I20: 0 | J20: 0 | K20: 0 | M20: 0 | O20: 0
C21: =IF(ISBLANK('B8 Schedule 8 CCA Bridge Year'!C20), "", 'B8 Schedule 8 CCA Bridge Year'!C20) -> 13 4 | D21: =IF(ISBLANK('B8 Schedule 8 CCA Bridge Year'!D20), "", 'B8 Schedule 8 CCA Bridge Year'!D20) -> Lease # 4 | E21: B8 | F21: =IF(ISBLANK('B8 Schedule 8 CCA Bridge Year'!O20), "", 'B8 Schedule 8 CCA Bridge Year'!O20) -> 0 | I21: 0 | J21: 0 | K21: 0 | M21: 0 | O21: 0
C22: =IF(ISBLANK('B8 Schedule 8 CCA Bridge Year'!C21), "", 'B8 Schedule 8 CCA Bridge Year'!C21) -> 14 | D22: =IF(ISBLANK('B8 Schedule 8 CCA Bridge Year'!D21), "", 'B8 Schedule 8 CCA Bridge Year'!D21) -> Franchise | E22: B8 | F22: =IF(ISBLANK('B8 Schedule 8 CCA Bridge Year'!O21), "", 'B8 Schedule 8 CCA Bridge Year'!O21) -> 0 | I22: 0 | J22: 0 | K22: 0 | M22: 0 | O22: 0
C23: =IF(ISBLANK('B8 Schedule 8 CCA Bridge Year'!C22), "", 'B8 Schedule 8 CCA Bridge Year'!C22) -> 17 | D23: =IF(ISBLANK('B8 Schedule 8 CCA Bridge Year'!D22), "", 'B8 Schedule 8 CCA Bridge Year'!D22) -> New Electrical Generating Equipment Acq'd after Feb 27/00 Other Than Bldgs | E23: B8 | F23: =IF(ISBLANK('B8 Schedule 8 CCA Bridge Year'!O22), "", 'B8 Schedule 8 CCA Bridge Year'!O22) -> 0 | I23: 0 | J23: 0 | K23: 0 | L23: ='B8 Schedule 8 CCA Bridge Year'!L22 -> 0.08 | M23: 0 | O23: 0
C24: =IF(ISBLANK('B8 Schedule 8 CCA Bridge Year'!C23), "", 'B8 Schedule 8 CCA Bridge Year'!C23) -> 42 | D24: =IF(ISBLANK('B8 Schedule 8 CCA Bridge Year'!D23), "", 'B8 Schedule 8 CCA Bridge Year'!D23) -> Fibre Optic Cable | E24: B8 | F24: =IF(ISBLANK('B8 Schedule 8 CCA Bridge Year'!O23), "", 'B8 Schedule 8 CCA Bridge Year'!O23) -> 0 | I24: 0 | J24: 0 | K24: 0 | L24: ='B8 Schedule 8 CCA Bridge Year'!L23 -> 0.12 | M24: =IF(+K24<0,+K24,+K24*L24) -> 0 | O24: 0
C25: =IF(ISBLANK('B8 Schedule 8 CCA Bridge Year'!C24), "", 'B8 Schedule 8 CCA Bridge Year'!C24) -> 43.1 | D25: =IF(ISBLANK('B8 Schedule 8 CCA Bridge Year'!D24), "", 'B8 Schedule 8 CCA Bridge Year'!D24) -> Certain Energy-Efficient Electrical Generating Equipment | E25: B8 | F25: =IF(ISBLANK('B8 Schedule 8 CCA Bridge Year'!O24), "", 'B8 Schedule 8 CCA Bridge Year'!O24) -> 0 | I25: 0 | J25: 0 | K25: 0 | L25: ='B8 Schedule 8 CCA Bridge Year'!L24 -> 0.3 | M25: 0 | O25: 0
C26: =IF(ISBLANK('B8 Schedule 8 CCA Bridge Year'!C25), "", 'B8 Schedule 8 CCA Bridge Year'!C25) -> 43.2 | D26: =IF(ISBLANK('B8 Schedule 8 CCA Bridge Year'!D25), "", 'B8 Schedule 8 CCA Bridge Year'!D25) -> Certain Clean Energy Generation Equipment | E26: B8 | F26: =IF(ISBLANK('B8 Schedule 8 CCA Bridge Year'!O25), "", 'B8 Schedule 8 CCA Bridge Year'!O25) -> 0 | I26: 0 | J26: 0 | K26: 0 | L26: ='B8 Schedule 8 CCA Bridge Year'!L25 -> 0.5 | M26: 0 | O26: 0
C27: =IF(ISBLANK('B8 Schedule 8 CCA Bridge Year'!C26), "", 'B8 Schedule 8 CCA Bridge Year'!C26) -> 45 | D27: =IF(ISBLANK('B8 Schedule 8 CCA Bridge Year'!D26), "", 'B8 Schedule 8 CCA Bridge Year'!D26) -> Computers & Systems Software acq'd post Mar 22/04 | E27: B8 | F27: =IF(ISBLANK('B8 Schedule 8 CCA Bridge Year'!O26), "", 'B8 Schedule 8 CCA Bridge Year'!O26) -> 10.45 | I27: 10.45 | J27: 0 | K27: 10.45 | L27: ='B8 Schedule 8 CCA Bridge Year'!L26 -> 0.45 | M27: 4.7025 | O27: 5.7475
C28: =IF(ISBLANK('B8 Schedule 8 CCA Bridge Year'!C27), "", 'B8 Schedule 8 CCA Bridge Year'!C27) -> 46 | D28: =IF(ISBLANK('B8 Schedule 8 CCA Bridge Year'!D27), "", 'B8 Schedule 8 CCA Bridge Year'!D27) -> Data Network Infrastructure Equipment (acq'd post Mar 22/04) | E28: B8 | F28: =IF(ISBLANK('B8 Schedule 8 CCA Bridge Year'!O27), "", 'B8 Schedule 8 CCA Bridge Year'!O27) -> 0 | I28: 0 | J28: 0 | K28: 0 | L28: ='B8 Schedule 8 CCA Bridge Year'!L27 -> 0.3 | M28: 0 | O28: 0
C29: =IF(ISBLANK('B8 Schedule 8 CCA Bridge Year'!C28), "", 'B8 Schedule 8 CCA Bridge Year'!C28) -> 47 | D29: =IF(ISBLANK('B8 Schedule 8 CCA Bridge Year'!D28), "", 'B8 Schedule 8 CCA Bridge Year'!D28) -> Distribution System - post February 2005 | E29: B8 | F29: =IF(ISBLANK('B8 Schedule 8 CCA Bridge Year'!O28), "", 'B8 Schedule 8 CCA Bridge Year'!O28) -> 2985072.84 | G29: =144505+54475 -> 198980 | I29: 3184052.84 | J29: 99490 | K29: 3084562.84 | L29: ='B8 Schedule 8 CCA Bridge Year'!L28 -> 0.08 | M29: 246765.0272 | O29: 2937287.813
C30: =IF(ISBLANK('B8 Schedule 8 CCA Bridge Year'!C29), "", 'B8 Schedule 8 CCA Bridge Year'!C29) -> 50 | D30: =IF(ISBLANK('B8 Schedule 8 CCA Bridge Year'!D29), "", 'B8 Schedule 8 CCA Bridge Year'!D29) -> Data Network Infrastructure Equipment - post Mar 2007 | E30: B8 | F30: =IF(ISBLANK('B8 Schedule 8 CCA Bridge Year'!O29), "", 'B8 Schedule 8 CCA Bridge Year'!O29) -> 4185 | I30: 4185 | J30: 0 | K30: 4185 | L30: ='B8 Schedule 8 CCA Bridge Year'!L29 -> 0.55 | M30: 2301.75 | O30: 1883.25
C31: =IF(ISBLANK('B8 Schedule 8 CCA Bridge Year'!C30), "", 'B8 Schedule 8 CCA Bridge Year'!C30) -> 52 | D31: =IF(ISBLANK('B8 Schedule 8 CCA Bridge Year'!D30), "", 'B8 Schedule 8 CCA Bridge Year'!D30) -> Computer Hardware and system software | E31: B8 | F31: =IF(ISBLANK('B8 Schedule 8 CCA Bridge Year'!O30), "", 'B8 Schedule 8 CCA Bridge Year'!O30) -> 0 | I31: 0 | J31: 0 | K31: 0 | L31: ='B8 Schedule 8 CCA Bridge Year'!L30 -> 1 | M31: 0 | O31: 0
C32: =IF(ISBLANK('B8 Schedule 8 CCA Bridge Year'!C31), "", 'B8 Schedule 8 CCA Bridge Year'!C31) -> 95 | D32: =IF(ISBLANK('B8 Schedule 8 CCA Bridge Year'!D31), "", 'B8 Schedule 8 CCA Bridge Year'!D31) -> CWIP | E32: B8 | F32: =IF(ISBLANK('B8 Schedule 8 CCA Bridge Year'!O31), "", 'B8 Schedule 8 CCA Bridge Year'!O31) -> 0 | I32: 0 | J32: 0 | K32: 0 | L32: ='B8 Schedule 8 CCA Bridge Year'!L31 -> 0 | M32: 0 | O32: 0
C33: 14.1 | D33: Eligible Capital Property (acq'd pre Jan 1, 2017)1 | E33: B10 | F33: ='B10 Schedule 10 CEC Bridge Year'!K40 -> 31503.1176 | I33: 31503.1176 | J33: 0 | K33: 31503.1176 | L33: 0.07 | M33: 2205.218232 | O33: 29297.89937
C34: 14.1 | D34: Eligible Capital Property (acq'd post Jan 1, 2017)1 | F34: =IF(ISBLANK('B8 Schedule 8 CCA Bridge Year'!O33), "", 'B8 Schedule 8 CCA Bridge Year'!O33) -> 0 | I34: 0 | J34: 0 | K34: 0 | L34: 0.05 | M34: 0 | O34: 0
C35: =IF(ISBLANK('B8 Schedule 8 CCA Bridge Year'!C34), "", 'B8 Schedule 8 CCA Bridge Year'!C34) ->  | D35: =IF(ISBLANK('B8 Schedule 8 CCA Bridge Year'!D34), "", 'B8 Schedule 8 CCA Bridge Year'!D34) ->  | F35: =IF(ISBLANK('B8 Schedule 8 CCA Bridge Year'!O34), "", 'B8 Schedule 8 CCA Bridge Year'!O34) -> 0 | I35: 0 | J35: 0 | K35: 0 | L35: ='B8 Schedule 8 CCA Bridge Year'!L34 -> 0 | M35: 0 | O35: 0
C36: =IF(ISBLANK('B8 Schedule 8 CCA Bridge Year'!C35), "", 'B8 Schedule 8 CCA Bridge Year'!C35) ->  | D36: =IF(ISBLANK('B8 Schedule 8 CCA Bridge Year'!D35), "", 'B8 Schedule 8 CCA Bridge Year'!D35) ->  | F36: =IF(ISBLANK('B8 Schedule 8 CCA Bridge Year'!O35), "", 'B8 Schedule 8 CCA Bridge Year'!O35) -> 0 | I36: =MAX((SUM(F36:H36)),0) -> 0 | J36: 0 | K36: =+I36-J36 -> 0 | L36: ='B8 Schedule 8 CCA Bridge Year'!L35 -> 0 | M36: =IF(+K36<0,+K36,+K36*L36) -> 0 | O36: 0
C37: =IF(ISBLANK('B8 Schedule 8 CCA Bridge Year'!C36), "", 'B8 Schedule 8 CCA Bridge Year'!C36) ->  | D37: =IF(ISBLANK('B8 Schedule 8 CCA Bridge Year'!D36), "", 'B8 Schedule 8 CCA Bridge Year'!D36) ->  | F37: =IF(ISBLANK('B8 Schedule 8 CCA Bridge Year'!O36), "", 'B8 Schedule 8 CCA Bridge Year'!O36) -> 0 | I37: =MAX((SUM(F37:H37)),0) -> 0 | J37: 0 | K37: =+I37-J37 -> 0 | L37: ='B8 Schedule 8 CCA Bridge Year'!L36 -> 0 | M37: =IF(+K37<0,+K37,+K37*L37) -> 0 | O37: 0
C38: =IF(ISBLANK('B8 Schedule 8 CCA Bridge Year'!C37), "", 'B8 Schedule 8 CCA Bridge Year'!C37) ->  | D38: =IF(ISBLANK('B8 Schedule 8 CCA Bridge Year'!D37), "", 'B8 Schedule 8 CCA Bridge Year'!D37) ->  | F38: =IF(ISBLANK('B8 Schedule 8 CCA Bridge Year'!O37), "", 'B8 Schedule 8 CCA Bridge Year'!O37) -> 0 | I38: =MAX((SUM(F38:H38)),0) -> 0 | J38: 0 | K38: =+I38-J38 -> 0 | L38: ='B8 Schedule 8 CCA Bridge Year'!L37 -> 0 | M38: =IF(+K38<0,+K38,+K38*L38) -> 0 | O38: 0
C39: =IF(ISBLANK('B8 Schedule 8 CCA Bridge Year'!C38), "", 'B8 Schedule 8 CCA Bridge Year'!C38) ->  | D39: =IF(ISBLANK('B8 Schedule 8 CCA Bridge Year'!D38), "", 'B8 Schedule 8 CCA Bridge Year'!D38) ->  | F39: =IF(ISBLANK('B8 Schedule 8 CCA Bridge Year'!O38), "", 'B8 Schedule 8 CCA Bridge Year'!O38) -> 0 | I39: 0 | J39: 0 | K39: 0 | L39: ='B8 Schedule 8 CCA Bridge Year'!L38 -> 0 | M39: 0 | O39: 0
C40: =IF(ISBLANK('B8 Schedule 8 CCA Bridge Year'!C39), "", 'B8 Schedule 8 CCA Bridge Year'!C39) ->  | D40: =IF(ISBLANK('B8 Schedule 8 CCA Bridge Year'!D39), "", 'B8 Schedule 8 CCA Bridge Year'!D39) ->  | F40: =IF(ISBLANK('B8 Schedule 8 CCA Bridge Year'!O39), "", 'B8 Schedule 8 CCA Bridge Year'!O39) -> 0 | I40: 0 | J40: 0 | K40: 0 | L40: ='B8 Schedule 8 CCA Bridge Year'!L39 -> 0 | M40: 0 | O40: 0
C41: =IF(ISBLANK('B8 Schedule 8 CCA Bridge Year'!C40), "", 'B8 Schedule 8 CCA Bridge Year'!C40) ->  | D41: =IF(ISBLANK('B8 Schedule 8 CCA Bridge Year'!D40), "", 'B8 Schedule 8 CCA Bridge Year'!D40) ->  | F41: =IF(ISBLANK('B8 Schedule 8 CCA Bridge Year'!O40), "", 'B8 Schedule 8 CCA Bridge Year'!O40) -> 0 | I41: 0 | J41: 0 | K41: 0 | L41: ='B8 Schedule 8 CCA Bridge Year'!L40 -> 0 | M41: 0 | O41: 0
C42: =IF(ISBLANK('B8 Schedule 8 CCA Bridge Year'!C41), "", 'B8 Schedule 8 CCA Bridge Year'!C41) ->  | D42: =IF(ISBLANK('B8 Schedule 8 CCA Bridge Year'!D41), "", 'B8 Schedule 8 CCA Bridge Year'!D41) ->  | F42: =IF(ISBLANK('B8 Schedule 8 CCA Bridge Year'!O41), "", 'B8 Schedule 8 CCA Bridge Year'!O41) -> 0 | I42: 0 | J42: 0 | K42: 0 | L42: ='B8 Schedule 8 CCA Bridge Year'!L41 -> 0 | M42: 0 | O42: 0
D43: TOTAL | F43: =SUM(F11:F42) -> 4175713.028 | G43: 204680 | H43: 0 | I43: 4380393.028 | J43: 102340 | K43: 4278053.028 | M43: =SUM(M11:M42) -> 304192.7007 | N43: T1 | O43: =SUM(O11:O42) -> 4076200.327
C45: 1 The 2016 Federal Budget proposed changes to eligible capital property, effective January 1, 2017. These changes are considered to be substantively enacted under IFRS as it was tabled for first reading in the House of Commons. The PILS model reflect the removal of the Eligible Capital Property regime and the addition of the new Class 14.1 CCA pool.

Sheet T10 Schedule 10 CEC Test Year (hidden)
C5: Schedule 10 CEC - Test Year
C7: Cumulative Eligible Capital | J7: B10 | K7: ='B10 Schedule 10 CEC Bridge Year'!K40 -> 31503.1176
C9: Additions
C10: Cost of Eligible Capital Property Acquired during Test Year | G10: 0
C12: Other Adjustments | G12: 0
C14: Subtotal | G14: =SUM(G10,G12) -> 0 | I14: x 3/4 = | J14: =3/4*G14 -> 0
C16: Non-taxable portion of a non-arm's length transferor's gain realized on the | G16: 0 | I16: x 1/2 = | J16: =IF((G16*0.5)<0, 0, G16*0.5) -> 0
C17: transfer of an ECP to the Corporation after Friday, December 20, 2002
J18: =IF((J14-J16)<0,0,J14-J16) -> 0 | K18: =J18 -> 0
C20: Amount transferred on amalgamation or wind-up of subsidiary | G20: 0 | K20: =G20 -> 0
F22: Subtotal | K22: =SUM(K7,K18,K20) -> 31503.1176
C24: Deductions
C26: Proceeds of sale (less outlays and expenses not otherwise deductible) | G26: 0
C27: from the disposition of all ECP during Test Year
C29: Other Adjustments | G29: 0
F31: Subtotal | G31: =SUM(G29,G26) -> 0 | I31: x 3/4 = | K31: =G31*3/4 -> 0
C35: Cumulative Eligible Capital Balance | K35: =K22-K31 -> 31503.1176
C37: Current Year Deduction (Carry Forward to Tab "Test Year Taxable Income") | I37: =K35 -> 31503.1176 | J37: x 7% = | K37: =I37*0.07 -> 2205.218232 | L37: T1
C39: Cumulative Eligible Capital - Closing Balance | K39: =K35-K37 -> 29297.89937

Sheet T13 Sch 13 Reserve Test Year
C7: Schedule 13 Tax Reserves - Test Year
C9: Continuity of Reserves
I10: Test Year Adjustments
C11: Description | D11: Working Paper Reference | E11: Bridge Year | F11: Eliminate Amounts Not Relevant for Bridge Year | G11: Adjusted Utility Balance | I11: Additions | J11: Disposals | K11: Balance for Test Year | M11: Change During the Year | N11: Disallowed Expenses
C13: Capital Gains Reserves ss.40(1) | D13: B13 | E13: ='B13 Sch 13 Tax Reserves Bridge'!K13 -> 0 | G13: =SUM(E13:F13) -> 0 | K13: =G13+I13-J13 -> 0 | M13: =+K13-G13 -> 0
C14: Tax Reserves Not Deducted for accounting purposes
C15: Reserve for doubtful accounts ss. 20(1)(l) | D15: B13 | E15: ='B13 Sch 13 Tax Reserves Bridge'!K15 -> 0 | G15: =SUM(E15:F15) -> 0 | I15: 0 | J15: 0 | K15: =G15+I15-J15 -> 0 | M15: =+K15-G15 -> 0
C16: Reserve for goods and services not delivered ss. 20(1)(m) | D16: B13 | E16: ='B13 Sch 13 Tax Reserves Bridge'!K16 -> 0 | G16: 0 | K16: 0 | M16: 0
C17: Reserve for unpaid amounts ss. 20(1)(n) | D17: B13 | E17: ='B13 Sch 13 Tax Reserves Bridge'!K17 -> 0 | G17: 0 | K17: 0 | M17: 0
C18: Debt & Share Issue Expenses ss. 20(1)(e) | D18: B13 | E18: ='B13 Sch 13 Tax Reserves Bridge'!K18 -> 0 | G18: 0 | K18: 0 | M18: 0
C19: Other tax reserves | D19: B13 | E19: ='B13 Sch 13 Tax Reserves Bridge'!K19 -> 0 | G19: 0 | K19: 0 | M19: 0
E20: ='B13 Sch 13 Tax Reserves Bridge'!K20 -> 0 | G20: 0 | K20: 0 | M20: 0
E21: ='B13 Sch 13 Tax Reserves Bridge'!K21 -> 0 | G21: 0 | K21: 0 | M21: 0
C22: Total | E22: =SUM(E15:E21) -> 0 | F22: 0 | G22: 0 | H22: T1 | I22: 0 | J22: 0 | K22: 0 | L22: T1 | M22: 0 | N22: 0
E23: 0
C24: Financial Statement Reserves (not deductible for Tax Purposes)
C25: General Reserve for Inventory Obsolescence (non-specific) | D25: B13 | E25: ='B13 Sch 13 Tax Reserves Bridge'!K25 -> 0 | G25: =SUM(E25:F25) -> 0 | K25: =G25+I25-J25 -> 0 | M25: =+K25-G25 -> 0
C26: General reserve for bad debts | D26: B13 | E26: ='B13 Sch 13 Tax Reserves Bridge'!K26 -> 0 | G26: 0 | K26: 0 | M26: 0
C27: Accrued Employee Future Benefits: | D27: B13 | E27: ='B13 Sch 13 Tax Reserves Bridge'!K27 -> 0 | G27: 0 | K27: 0 | M27: 0
C28: - Medical and Life Insurance | D28: B13 | E28: ='B13 Sch 13 Tax Reserves Bridge'!K28 -> 0 | G28: 0 | K28: 0 | M28: 0
C29: -Short & Long-term Disability | D29: B13 | E29: ='B13 Sch 13 Tax Reserves Bridge'!K29 -> 0 | G29: 0 | K29: 0 | M29: 0
C30: -Accmulated Sick Leave | D30: B13 | E30: ='B13 Sch 13 Tax Reserves Bridge'!K30 -> 0 | G30: 0 | K30: 0 | M30: 0
C31: - Termination Cost | D31: B13 | E31: ='B13 Sch 13 Tax Reserves Bridge'!K31 -> 0 | G31: 0 | K31: 0 | M31: 0
C32: - Other Post-Employment Benefits | D32: B13 | E32: ='B13 Sch 13 Tax Reserves Bridge'!K32 -> 0 | G32: 0 | K32: 0 | M32: 0
C33: Provision for Environmental Costs | D33: B13 | E33: ='B13 Sch 13 Tax Reserves Bridge'!K33 -> 0 | G33: 0 | K33: 0 | M33: 0
C34: Restructuring Costs | D34: B13 | E34: ='B13 Sch 13 Tax Reserves Bridge'!K34 -> 0 | G34: 0 | K34: 0 | M34: 0
C35: Accrued Contingent Litigation Costs | D35: B13 | E35: ='B13 Sch 13 Tax Reserves Bridge'!K35 -> 0 | G35: 0 | K35: 0 | M35: 0
C36: Accrued Self-Insurance Costs | D36: B13 | E36: ='B13 Sch 13 Tax Reserves Bridge'!K36 -> 0 | G36: 0 | K36: 0 | M36: 0
C37: Other Contingent Liabilities | D37: B13 | E37: ='B13 Sch 13 Tax Reserves Bridge'!K37 -> 0 | G37: 0 | K37: 0 | M37: 0
C38: Bonuses Accrued and Not Paid Within 180 Days of Year-End ss. 78(4) | D38: B13 | E38: ='B13 Sch 13 Tax Reserves Bridge'!K38 -> 0 | G38: 0 | K38: 0 | M38: 0
C39: Unpaid Amounts to Related Person and Not Paid Within 3 Taxation Years ss. 78(1) | D39: B13 | E39: ='B13 Sch 13 Tax Reserves Bridge'!K39 -> 0 | G39: 0 | K39: 0 | M39: 0
C40: Other | D40: B13 | E40: ='B13 Sch 13 Tax Reserves Bridge'!K40 -> 0 | G40: 0 | K40: 0 | M40: 0
E41: ='B13 Sch 13 Tax Reserves Bridge'!K41 -> 0 | G41: 0 | K41: 0 | M41: 0
E42: ='B13 Sch 13 Tax Reserves Bridge'!K42 -> 0 | G42: 0 | K42: 0 | M42: 0
C43: Total | E43: =SUM(E25:E42) -> 0 | F43: 0 | G43: 0 | H43: T1 | I43: 0 | J43: 0 | K43: 0 | L43: T1 | M43: 0 | N43: 0
E44: 0
